Workbook

Sheet CONSOLIDAÇÃO
B1: NOME PLANILHA | C1: ABA | D1: OBJETIVO DE APRENDIZAGEM | E1: CLAREZA | F1: PERTINÊNCIA | G1: COMENTÁRIO
B2: EducacÌ§aÌƒo Infantil - BebeÌ‚s.xlsx | C2: O EU, O OUTRO, O NÓS - Bebês | D2: (EIBEEO03) Dialogar com parceiros coetâneos ou adultos, ao explorar materiais, objetos, brinquedos. | E2: NÃO | G2: dialogar com outras crianças e/ ou adultos, ao explorar materiais, objetos, brinquedos.
B3: EducacÌ§aÌƒo Infantil - Bem pequenas.xlsx | C3: O EU, O OUTRO, O NÓS - BP | D3: (EIBPEO04) Praticar suas habilidades comunicativas, ampliando a compreensão das mensagens dos colegas. | F3: SIM | G3: PRATICAR SUAS HABILIDADES COMUNICATIVAS, AMPLIAR E COMPREENDER AS MENSAGENS DOS COLEGAS...
B4: EducacÌ§aÌƒo Infantil - Bem pequenas.xlsx | C4: CORPO, GESTOS E MOV. - BP | D4: (EIBPCG04) Demonstrar uma valorização das características do seu corpo, nas diversas atividades das quais participa, como em momentos de cuidado de si e do outro, em jogos, histórias e em atividades artísticas. | E4: NÃO | G4: 1.VALORIZAR AS CARACTERÍSTICAS.... 2.DEMONSTRAR CRESCENTE VALORIZAÇÃO... 3. DEMONSTRAR CONHECIMENTO E VALORIZAÇÃO DAS CARACTERÍSTICAS DO SEU CORPO... 4.RETIRAR A PALAVRA "UMA"
B5: EducacÌ§aÌƒo Infantil - Bem pequenas.xlsx | C5: CORPO, GESTOS E MOV. - BP | D5: (EIBPCG04) Demonstrar uma valorização das características do seu corpo, nas diversas atividades das quais participa, como em momentos de cuidado de si e do outro, em jogos, histórias e em atividades artísticas. | F5: SIM | G5: 1.VALORIZAR AS CARACTERÍSTICAS.... 2.DEMONSTRAR CRESCENTE VALORIZAÇÃO... 3. DEMONSTRAR CONHECIMENTO E VALORIZAÇÃO DAS CARACTERÍSTICAS DO SEU CORPO... 4.RETIRAR A PALAVRA "UMA"
B6: EducacÌ§aÌƒo Infantil - Bem pequenas.xlsx | C6: ESPAÇOS, TEMPOS, QNT. - BP | D6: (EIBPET02) Relatar transformações observadas em materiais, animais, pessoas ou no ambiente. | F6: SIM | G6: RELATAR "SITUAÇÕES"...
B7: EducacÌ§aÌƒo Infantil - Bem pequenas.xlsx | C7: ESPAÇOS, TEMPOS, QNT. - BP | D7: (EIBPET04) Classificar objetos, considerando um atributo (tamanho ou peso ou cor ou outro atributo). | F7: SIM
B8: EducacÌ§aÌƒo Infantil - Bem pequenas.xlsx | C8: ESPAÇOS, TEMPOS, QNT. - BP | D8: (EIBPET05) Ordenar objetos, considerando um atributo (tamanho ou peso ou espessura ou outro atributo). | F8: SIM | G8: 2. MANTER OS OBJETIVOS E OS TEXTOS.
B9: EducacÌ§aÌƒo Infantil - Pequenas.xlsx | C9: CORPO, GESTOS E MOV. - Pequenas | D9: (EICPCG02) Criar movimentos, gestos, olhares, sons e mímicas com o corpo em brincadeiras, jogos e atividades artísticas como dança, teatro e música. | F9: SIM | G9: SEM MODIFICAÇÕES.
B10: EducacÌ§aÌƒo Infantil - Pequenas.xlsx | C10: TRAÇOS, SONS, FORMAS - Pequenas | D10: (EICPTS03) Analisar apresentações de teatro, música, dança, circo, cinema e outras manifestações artísticas, apresentando sua opinião verbalmente ou de outra forma. | E10: NÃO | G10: 1.O VERBO ANALISAR É MUITO COMPLEXO 2.CONSIDERO O VERBO ANALISAR PERTINENTE 3. SUBSTITUIR O 'ANALISAR" POR "APRECIAR" 4. O VERBÇO ANALISAR NÃO CABE NO CONTEXTO E PODE SER SUBSTITUÍDO POR "VIVENCIAR"
B11: EducacÌ§aÌƒo Infantil - Pequenas.xlsx | C11: TRAÇOS, SONS, FORMAS - Pequenas | D11: (EICPTS03) Analisar apresentações de teatro, música, dança, circo, cinema e outras manifestações artísticas, apresentando sua opinião verbalmente ou de outra forma. | F11: SIM | G11: 1.O VERBO ANALISAR É MUITO COMPLEXO 2.CONSIDERO O VERBO ANALISAR PERTINENTE 3. SUBSTITUIR O 'ANALISAR" POR "APRECIAR" 4. O VERBÇO ANALISAR NÃO CABE NO CONTEXTO E PODE SER SUBSTITUÍDO POR "VIVENCIAR"
B12: EducacÌ§aÌƒo Infantil - Pequenas.xlsx | C12: ESPAÇOS, TEMPOS, QNT. - Pequena | D12: (EICPET05) Fazer observações e descrever elementos e fenômenos naturais como luz solar, vento, chuva, temperatura, mudanças climáticas, relevo e paisagem. | F12: SIM
B13: Ensino Fund. I (1Âº, 2Âº e 3Âº anos).xlsx | C13: LINGUAGENS. LÍNGUA PORT I | D13: (EF01LP12) Apreciar poemas,observando sua estrutura: rimas, sonoridades, jogo de palavras, reconhecendo seu pertencimento ao mundo imaginário e sua dimensão de encantamento, jogo e fruição. | E13: NÃO | G13: Poema (detalhar as categorias que estão incluídas em Poemas. Explicitar os gêneros englobados em Poemas) Discutir melhor os itens que são englobados em Poemas.
B14: Ensino Fund. I (1Âº, 2Âº e 3Âº anos).xlsx | C14: LINGUAGENS. LÍNGUA PORT I | D14: (EF02LP14) Apreciar poemas, observando os aspectos rítmicos e sonoros e reconhecendo que o gênero pertence à esfera literária (encantamento, jogo e fruição). | E14: NÃO | G14: Poema (detalhar as categorias que estão incluídas em Poemas. Explicitar os gêneros englobados em Poemas) Discutir melhor os itens que são englobados em Poemas.
B15: Ensino Fund. I (1Âº, 2Âº e 3Âº anos).xlsx | C15: LINGUAGENS. LÍNGUA PORT I | D15: (EF03LP12) Apreciar poemas e identificar como recursos literários simples (por exemplo, comparações) e ritmo influenciam a reação do leitor. | E15: NÃO | G15: Poema (detalhar as categorias que estão incluídas em Poemas. Explicitar os gêneros englobados em Poemas) Discutir melhor os itens que são englobados em Poemas.
B16: Ensino Fund. I (1Âº, 2Âº e 3Âº anos).xlsx | C16: LINGUAGENS. LÍNGUA PORT I | D16: (EF01LP12) Apreciar poemas,observando sua estrutura: rimas, sonoridades, jogo de palavras, reconhecendo seu pertencimento ao mundo imaginário e sua dimensão de encantamento, jogo e fruição. | F16: SIM | G16: Poema (detalhar as categorias que estão incluídas em Poemas. Explicitar os gêneros englobados em Poemas) Discutir melhor os itens que são englobados em Poemas.
B17: Ensino Fund. I (1Âº, 2Âº e 3Âº anos).xlsx | C17: LINGUAGENS. LÍNGUA PORT I | D17: (EF02LP14) Apreciar poemas, observando os aspectos rítmicos e sonoros e reconhecendo que o gênero pertence à esfera literária (encantamento, jogo e fruição). | F17: SIM | G17: Poema (detalhar as categorias que estão incluídas em Poemas. Explicitar os gêneros englobados em Poemas) Discutir melhor os itens que são englobados em Poemas.
B18: Ensino Fund. I (1Âº, 2Âº e 3Âº anos).xlsx | C18: LINGUAGENS. LÍNGUA PORT I | D18: (EF03LP12) Apreciar poemas e identificar como recursos literários simples (por exemplo, comparações) e ritmo influenciam a reação do leitor. | F18: SIM | G18: Poema (detalhar as categorias que estão incluídas em Poemas. Explicitar os gêneros englobados em Poemas) Discutir melhor os itens que são englobados em Poemas.
B19: Ensino Fund. I (4Âº e 5Âº anos).xlsx | C19: LINGUAGENS. LÍNGUA PORT. | D19: (EF04LP11) Apreciar poemas e analisar como o uso de recursos literários como metáforas produzem significações e como aspectos da forma - onomatopeias e aliterações - produzem ritmo e melodia. | E19: NÃO | G19: Poema (detalhar as categorias que estão incluídas em Poemas. Explicitar os gêneros englobados em Poemas) Discutir melhor os itens que são englobados em Poemas.
B20: Ensino Fund. I (4Âº e 5Âº anos).xlsx | C20: LINGUAGENS. LÍNGUA PORT. | D20: (EF05LP11) Apreciar poemas e avaliar como jogos de palavras, e recursos sonoros produzem novos sentidos efeitos estéticos. Avaliar efeitos de sentido decorrentes do uso de variações regionais em poemas. | E20: NÃO | G20: Poema (detalhar as categorias que estão incluídas em Poemas. Explicitar os gêneros englobados em Poemas) Discutir melhor os itens que são englobados em Poemas.
B21: Ensino Fund. I (4Âº e 5Âº anos).xlsx | C21: LINGUAGENS. LÍNGUA PORT. | D21: (EF04LP40) Escrever palavras com correspondências regulares contextuais entre letras ou grupo de letras e seu valor sonoro (C/QU;G/GU;R/ RR; SA/SO/SU em início de palavra; JA/JO/JU; Z inicial; O ou U/E ou I em sílaba final; M e N nasalizando final de sílaba; NH; Ã e ÃO em final de substantivos e adjetivos). | E21: SIM | G21: acrescentar objetivo relacionado a percepção de casos de irrergularidades ortográfica a partir do 3º ano). Identificar casos de irregularidades ortográficas buscando recursos para o trabalho.
B22: Ensino Fund. I (4Âº e 5Âº anos).xlsx | C22: LINGUAGENS. LÍNGUA PORT. | D22: (EF05LP38) Escrever de palavras com correspondências regulares contextuais entre letras ou grupo de letras e seu valor sonoro (C/QU;G/GU;R/ RR; SA/SO/SU em início de palavra; JA/JO/JU; Z inicial; O ou U/E ou I em sílaba final; M e N nasalizando final de sílaba; NH; Ã e ÃO em final de substantivos e adjetivos). | E22: SIM | G22: acrescentar objetivo relacionado a percepção de casos de irrergularidades ortográfica a partir do 3º ano). Identificar casos de irregularidades ortográficas buscando recursos para o trabalho.
B23: Ensino Fund. I (4Âº e 5Âº anos).xlsx | C23: LINGUAGENS. LÍNGUA PORT. | D23: (EF04LP11) Apreciar poemas e analisar como o uso de recursos literários como metáforas produzem significações e como aspectos da forma - onomatopeias e aliterações - produzem ritmo e melodia. | F23: SIM | G23: Poema (detalhar as categorias que estão incluídas em Poemas. Explicitar os gêneros englobados em Poemas) Discutir melhor os itens que são englobados em Poemas.
B24: Ensino Fund. I (4Âº e 5Âº anos).xlsx | C24: LINGUAGENS. LÍNGUA PORT. | D24: (EF05LP11) Apreciar poemas e avaliar como jogos de palavras, e recursos sonoros produzem novos sentidos efeitos estéticos. Avaliar efeitos de sentido decorrentes do uso de variações regionais em poemas. | F24: SIM | G24: Poema (detalhar as categorias que estão incluídas em Poemas. Explicitar os gêneros englobados em Poemas) Discutir melhor os itens que são englobados em Poemas.
B25: Ensino Fund. I (4Âº e 5Âº anos).xlsx | C25: LINGUAGENS. LÍNGUA PORT. | D25: (EF04LP40) Escrever palavras com correspondências regulares contextuais entre letras ou grupo de letras e seu valor sonoro (C/QU;G/GU;R/ RR; SA/SO/SU em início de palavra; JA/JO/JU; Z inicial; O ou U/E ou I em sílaba final; M e N nasalizando final de sílaba; NH; Ã e ÃO em final de substantivos e adjetivos). | F25: SIM | G25: acrescentar objetivo relacionado a percepção de casos de irrergularidades ortográfica a partir do 3º ano). Identificar casos de irregularidades ortográficas buscando recursos para o trabalho.
B26: Ensino Fund. I (4Âº e 5Âº anos).xlsx | C26: LINGUAGENS. LÍNGUA PORT. | D26: (EF05LP38) Escrever de palavras com correspondências regulares contextuais entre letras ou grupo de letras e seu valor sonoro (C/QU;G/GU;R/ RR; SA/SO/SU em início de palavra; JA/JO/JU; Z inicial; O ou U/E ou I em sílaba final; M e N nasalizando final de sílaba; NH; Ã e ÃO em final de substantivos e adjetivos). | F26: SIM | G26: acrescentar objetivo relacionado a percepção de casos de irrergularidades ortográfica a partir do 3º ano). Identificar casos de irregularidades ortográficas buscando recursos para o trabalho.
B27: Ensino Fund. II - Arte.xlsx | C27: ARTES | D27: (EF06AR01) Aprofundar as vivências e compreensão de práticas artístico-visuais e o conhecimento dos elementos constitutivos específicos das artes visuais. | E27: SIM | G27: Obrigatoriedade do ensino de artes em todas as séries do ensino fundamental, contemplando as 4 linguagens.
B28: Ensino Fund. II - Arte.xlsx | C28: ARTES | D28: (EF06AR02) Experimentar materiais, instrumentos e recursos convencionais, alternativos e digitais no planejamento e na criação de produções visuais (ES, CD). | E28: SIM | G28: Lugar físico adequado para aulas práticas e tempo hábil para tal. Aulas duplas
B29: Ensino Fund. II - Arte.xlsx | C29: ARTES | D29: (EF06AR03) Dialogar com princípios conceituais, proposições temáticas, repertórios imagéticos e processos de criação nas suas produções visuais (DHC). | E29: SIM
B30: Ensino Fund. II - Arte.xlsx | C30: ARTES | D30: (EF06AR04) Organizar o ambiente para o trabalho, compreendendo a utilização dos materiais com responsabilidade e sustentabilidade (ES). | E30: SIM | G30: Habilitar salas para a prática de artes com materiais adequados.
B31: Ensino Fund. II - Arte.xlsx | C31: ARTES | D31: (EF06AR05) Conhecer e pesquisar processos e produtos de artistas locais, regionais, nacionais e estrangeiros, em diferentes matrizes estéticas e culturais (DHC). | E31: SIM | G31: Trabalho de campo(excursao) garantia de transporte, recursos
B32: Ensino Fund. II - Arte.xlsx | C32: ARTES | D32: (EF06AR06) Produzir sentidos, em suas produções, sobre as de seus colegas e a partir de diferentes produtos e processos artísticos (DHC, CIA). | E32: NÃO | G32: Trocar a palavra produzir por Contextualizar a produção artística de acordo com a metodologia triangular.
B33: Ensino Fund. II - Arte.xlsx | C33: ARTES | D33: (EF06AR07) Estudar aspectos históricos, sociais e políticos da produção artística, problematizando as narrativas eurocêntricas e as diversas categorizações da arte (arte, artesanato, folclore, design etc.) (DHC, CIA). | E33: SIM
B34: Ensino Fund. II - Arte.xlsx | C34: ARTES | D34: (EF06AR08) Investigar e experimentar as relações profissionais do sistema das Artes Visuais, diferenciando as categorias de artista, artesão, produtor cultural, curador, designer, entre outras (ES). | E34: SIM | G34: acrescentar saberes tradicionais(quilombolas, ciganos,etc...) e regionais
B35: Ensino Fund. II - Arte.xlsx | C35: ARTES | D35: (EF06AR09) Conhecer e explorar elementos constitutivos do movimento cotidiano e do movimento dançado a partir do desenvolvimento das formas da dança, presentes em sua história tradicional e contemporânea (CIA, DHC). | E35: NÃO | G35: consciencia corporal(corporeidade)
B36: Ensino Fund. II - Arte.xlsx | C36: ARTES | D36: (EF06AR09) Conhecer e explorar elementos constitutivos do movimento cotidiano e do movimento dançado a partir do desenvolvimento das formas da dança, presentes em sua história tradicional e contemporânea (CIA, DHC). | E36: SIM | G36: repetido
B37: Ensino Fund. II - Arte.xlsx | C37: ARTES | D37: (EF06AR10) Vivenciar técnicas de improvisação e criação do movimento como fonte de pesquisa e investigação coreográfica, construindo vocabulários e repertórios próprios. | E37: SIM | G37: auxílio de professor técnico
B38: Ensino Fund. II - Arte.xlsx | C38: ARTES | D38: (EF06AR11) Reconhecer e experimentar os fatores de movimento — tempo, peso, fluência e espaço — , como elementos que, combinados, geram as ações corporais e movimento dançado. | E38: SIM | G38: espaço adequado para desenvolvimento dessas habilidades.
B39: Ensino Fund. II - Arte.xlsx | C39: ARTES | D39: (EF06AR12) Utilizar brincadeiras, jogos e danças coletivas de diferentes matrizes estéticas e culturais, como território de investigação para a criação e composição de danças autorais, individualmente e em grupo (CIA, DHC). | E39: SIM | G39: espaço adequado para desenvolvimento dessas habilidades.
B40: Ensino Fund. II - Arte.xlsx | C40: ARTES | D40: (EF06AR13) Experimentar, conhecer, apreciar e pesquisar diferentes formas de expressão, representação e encenação da dança em seus diversos contextos (DHC, CIA, CD). | E40: SIM | G40: recursos multimídias
B41: Ensino Fund. II - Arte.xlsx | C41: ARTES | D41: (EF06AR14) Conhecer o espaço cênico, sua relação com a dança e as diferentes possibilidades de utilização de espaços não-convencionais para apresentação coreográfica. | E41: SIM | G41: Saídas de campo
B42: Ensino Fund. II - Arte.xlsx | C42: ARTES | D42: (EF06AR15) Experimentar os diferentes elementos (figurino, iluminação, cenário, trilha sonora, etc.) para composição cênica em dança. | E42: SIM | G42: espaço adequado para desenvolvimento dessas habilidades.
B43: Ensino Fund. II - Arte.xlsx | C43: ARTES | D43: (EF06AR16) Apropriar-se dos diversos conceitos e procedimentos de dança de modo a problematizar as questões de gênero, corpo e sexualidade. | E43: SIM | G43: Possibilidades de convidados especializados para o tema da sexualidade.
B44: Ensino Fund. II - Arte.xlsx | C44: ARTES | D44: (EF06AR17) Abordar criticamente a historiografia da dança, ampliando suas possibilidades de interpretação e de produção de sentido. | E44: SIM
B45: Ensino Fund. II - Arte.xlsx | C45: ARTES | D45: (EF06AR18) Conhecer os modos de organização e produção em dança em diversos aspectos sociais, culturais e econômicos (ES). | E45: SIM | G45: acrescentar cultura religiosa
B46: Ensino Fund. II - Arte.xlsx | C46: ARTES | D46: (EF06AR19) Identificar e manipular elementos constitutivos da música em práticas diversas de composição/criação, execução e apreciação musicais, privilegiando aquelas presentes nas culturas infanto-juvenis. | E46: SIM | G46: capacitar professor para o mesmo
B47: Ensino Fund. II - Arte.xlsx | C47: ARTES | D47: (EF06AR20) Identificar e manipular diferentes formas de utilização de fontes sonoras, materiais sonoros e técnicas em práticas de composição/ criação, execução e apreciação musical, privilegiando aquelas presentes nas culturas infanto-juvenis. | E47: SIM | G47: espaço adequado para desenvolvimento dessas habilidades.(questões de sonorização) instrumentos musicais(sopro, corda, percussão, teclas)
B48: Ensino Fund. II - Arte.xlsx | C48: ARTES | D48: (EF06AR21) Identificar e manipular diferentes formas de registro musical, incluindo formas distintas de notação musical, bem como procedimentos e técnicas de registro em áudio e audiovisual (CD). | E48: SIM | G48: recursos materiais
B49: Ensino Fund. II - Arte.xlsx | C49: ARTES | D49: (EF06AR22) Identificar e manipular diferentes tecnologias para apreciar, produzir, registrar e compartilhar práticas e repertórios musicais de modo ético, considerando, em especial, as culturas infanto-juvenis (CD). | E49: SIM
B50: Ensino Fund. II - Arte.xlsx | C50: ARTES | D50: (EF06AR23) Reconhecer e valorizar o patrimônio musical, material e imaterial, de culturas diversas, em especial as de matriz africanas e indígenas, em diferentes épocas, privilegiando as culturas infanto-juvenis (CIA, DHC). | E50: SIM
B51: Ensino Fund. II - Arte.xlsx | C51: ARTES | D51: (EF06AR24) Compreender usos e funções da música em seus contextos de produção e circulação, considerando, em especial, contextos próximos aos estudantes e as culturas infanto-juvenis (ES). | E51: SIM
B52: Ensino Fund. II - Arte.xlsx | C52: ARTES | D52: (EF06AR26) Interagir criticamente com diferentes dispositivos e equipamentos culturais de circulação da música e do conhecimento musical, considerando, em especial, aqueles que contemplam as culturas infanto-juvenis (ES, DHC). | E52: SIM | G52: proporcionar recursos materias, interdisciplinariedade
B53: Ensino Fund. II - Arte.xlsx | C53: ARTES | D53: (EF06AR27) Compreender práticas musicais nas suas relações com as esferas social, cultural, política, histórica, econômica, estética e ética, considerando, em especial, contextos próximos aos estudantes e as culturas infanto-juvenis(ES, CIA, DHC). | E53: SIM
B54: Ensino Fund. II - Arte.xlsx | C54: ARTES | D54: (EF06AR28) Exercitar diferentes funções teatrais e compreender os limites e desafios do trabalho artístico coletivo e colaborativo (DHC). | E54: SIM | G54: espaço adequado
B55: Ensino Fund. II - Arte.xlsx | C55: ARTES | D55: (EF06AR29) Conhecer os vocabulários e os elementos constitutivos do teatro. | E55: SIM
B56: Ensino Fund. II - Arte.xlsx | C56: ARTES | D56: (EF06AR30) Conhecer os modos de criação, produção, divulgação, circulação e organização da atuação profissional em teatro (ES). | E56: SIM
B57: Ensino Fund. II - Arte.xlsx | C57: ARTES | D57: (EF06AR31) Experimentar a gestualidade, as sonoridades corporais e as vocalidades de maneira imaginativa, na improvisação teatral. | E57: SIM | G57: espaço adequado
B58: Ensino Fund. II - Arte.xlsx | C58: ARTES | D58: (EF06AR32) Compor acontecimentos cênicos e caracterizar diferentes personagens, tipos e figuras, a partir de textos dramáticos, de músicas, de imagens, de narrativas ou de outros elementos dados ou inventados. | E58: SIM | G58: espaço adequado
B59: Ensino Fund. II - Arte.xlsx | C59: ARTES | D59: (EF06AR33) Experimentar diferentes estilos cênicos, contextualizando-os no tempo e no espaço. | E59: SIM | G59: Participação das escolas nas manifestações culturais locais
B60: Ensino Fund. II - Arte.xlsx | C60: ARTES | D60: (EF06AR34) Experimentar elementos de diferentes matrizes estéticas e culturais, investigando suas teatralidades e possibilidades de encenações (CIA, DHC). | E60: SIM | G60: Teatro musical
B61: Ensino Fund. II - Arte.xlsx | C61: ARTES | D61: (EF06AR35) Pesquisar e criar formas de dramaturgias e espaços cênicos para o acontecimento teatral, em diálogo com o teatro contemporâneo. | E61: SIM | G61: espaço adequado
B62: Ensino Fund. II - Arte.xlsx | C62: ARTES | D62: (EF06AR36) Pesquisar, conhecer e apreciar o trabalho de grupos de teatro, de dramaturgos, de atores e diretores locais, regionais, nacionais e estrangeiros, do passado e do presente (CIA). | E62: SIM | G62: Teatro musical
B63: Ensino Fund. II - Arte.xlsx | C63: ARTES | D63: (EF06AR37) Refletir sobre as experiências teatrais desenvolvidas em aula de modo a problematizar as questões de gênero, corpo e sexualidade. | E63: SIM | G63: Convidados especializados para tratar dos assuntos (genero, corpo e sex. e quest. racial)
B64: Ensino Fund. II - Arte.xlsx | C64: ARTES | D64: (EF06AR38) Criar acontecimentos cênicos, relacionando elementos como figurinos, adereços, cenário, iluminação, sonoplastia, tecnologias da comunicação e informação, jogo, textos, improvisações e as relações com o espectador. (CIA, DHC, CD). | E64: SIM | G64: Trabalho interdisciplinar de todos os conteúdos junto as artes dentro das 4 linguagens de arte.
B65: Ensino Fund. II - Arte.xlsx | C65: ARTES | D65: (EF06AR01) Aprofundar as vivências e compreensão de práticas artístico-visuais e o conhecimento dos elementos constitutivos específicos das artes visuais. | F65: SIM | G65: Obrigatoriedade do ensino de artes em todas as séries do ensino fundamental, contemplando as 4 linguagens.
B66: Ensino Fund. II - Arte.xlsx | C66: ARTES | D66: (EF06AR02) Experimentar materiais, instrumentos e recursos convencionais, alternativos e digitais no planejamento e na criação de produções visuais (ES, CD). | F66: SIM | G66: Lugar físico adequado para aulas práticas e tempo hábil para tal. Aulas duplas
B67: Ensino Fund. II - Arte.xlsx | C67: ARTES | D67: (EF06AR03) Dialogar com princípios conceituais, proposições temáticas, repertórios imagéticos e processos de criação nas suas produções visuais (DHC). | F67: SIM
B68: Ensino Fund. II - Arte.xlsx | C68: ARTES | D68: (EF06AR04) Organizar o ambiente para o trabalho, compreendendo a utilização dos materiais com responsabilidade e sustentabilidade (ES). | F68: SIM | G68: Habilitar salas para a prática de artes com materiais adequados.
B69: Ensino Fund. II - Arte.xlsx | C69: ARTES | D69: (EF06AR05) Conhecer e pesquisar processos e produtos de artistas locais, regionais, nacionais e estrangeiros, em diferentes matrizes estéticas e culturais (DHC). | F69: SIM | G69: Trabalho de campo(excursao) garantia de transporte, recursos
B70: Ensino Fund. II - Arte.xlsx | C70: ARTES | D70: (EF06AR06) Produzir sentidos, em suas produções, sobre as de seus colegas e a partir de diferentes produtos e processos artísticos (DHC, CIA). | F70: SIM | G70: Trocar a palavra produzir por Contextualizar a produção artística de acordo com a metodologia triangular.
B71: Ensino Fund. II - Arte.xlsx | C71: ARTES | D71: (EF06AR07) Estudar aspectos históricos, sociais e políticos da produção artística, problematizando as narrativas eurocêntricas e as diversas categorizações da arte (arte, artesanato, folclore, design etc.) (DHC, CIA). | F71: SIM
B72: Ensino Fund. II - Arte.xlsx | C72: ARTES | D72: (EF06AR08) Investigar e experimentar as relações profissionais do sistema das Artes Visuais, diferenciando as categorias de artista, artesão, produtor cultural, curador, designer, entre outras (ES). | F72: SIM | G72: acrescentar saberes tradicionais(quilombolas, ciganos,etc...) e regionais
B73: Ensino Fund. II - Arte.xlsx | C73: ARTES | D73: (EF06AR09) Conhecer e explorar elementos constitutivos do movimento cotidiano e do movimento dançado a partir do desenvolvimento das formas da dança, presentes em sua história tradicional e contemporânea (CIA, DHC). | F73: SIM | G73: consciencia corporal(corporeidade)
B74: Ensino Fund. II - Arte.xlsx | C74: ARTES | D74: (EF06AR10) Vivenciar técnicas de improvisação e criação do movimento como fonte de pesquisa e investigação coreográfica, construindo vocabulários e repertórios próprios. | F74: SIM | G74: auxílio de professor técnico
B75: Ensino Fund. II - Arte.xlsx | C75: ARTES | D75: (EF06AR11) Reconhecer e experimentar os fatores de movimento — tempo, peso, fluência e espaço — , como elementos que, combinados, geram as ações corporais e movimento dançado. | F75: SIM | G75: espaço adequado para desenvolvimento dessas habilidades.
B76: Ensino Fund. II - Arte.xlsx | C76: ARTES | D76: (EF06AR12) Utilizar brincadeiras, jogos e danças coletivas de diferentes matrizes estéticas e culturais, como território de investigação para a criação e composição de danças autorais, individualmente e em grupo (CIA, DHC). | F76: SIM | G76: espaço adequado para desenvolvimento dessas habilidades.
B77: Ensino Fund. II - Arte.xlsx | C77: ARTES | D77: (EF06AR13) Experimentar, conhecer, apreciar e pesquisar diferentes formas de expressão, representação e encenação da dança em seus diversos contextos (DHC, CIA, CD). | F77: SIM | G77: recursos multimídias
B78: Ensino Fund. II - Arte.xlsx | C78: ARTES | D78: (EF06AR14) Conhecer o espaço cênico, sua relação com a dança e as diferentes possibilidades de utilização de espaços não-convencionais para apresentação coreográfica. | F78: SIM | G78: Saídas de campo
B79: Ensino Fund. II - Arte.xlsx | C79: ARTES | D79: (EF06AR15) Experimentar os diferentes elementos (figurino, iluminação, cenário, trilha sonora, etc.) para composição cênica em dança. | F79: SIM | G79: espaço adequado para desenvolvimento dessas habilidades.
B80: Ensino Fund. II - Arte.xlsx | C80: ARTES | D80: (EF06AR16) Apropriar-se dos diversos conceitos e procedimentos de dança de modo a problematizar as questões de gênero, corpo e sexualidade. | F80: SIM | G80: Possibilidades de convidados especializados para o tema da sexualidade.
B81: Ensino Fund. II - Arte.xlsx | C81: ARTES | D81: (EF06AR17) Abordar criticamente a historiografia da dança, ampliando suas possibilidades de interpretação e de produção de sentido. | F81: SIM
B82: Ensino Fund. II - Arte.xlsx | C82: ARTES | D82: (EF06AR18) Conhecer os modos de organização e produção em dança em diversos aspectos sociais, culturais e econômicos (ES). | F82: SIM | G82: acrescentar cultura religiosa
B83: Ensino Fund. II - Arte.xlsx | C83: ARTES | D83: (EF06AR19) Identificar e manipular elementos constitutivos da música em práticas diversas de composição/criação, execução e apreciação musicais, privilegiando aquelas presentes nas culturas infanto-juvenis. | F83: SIM | G83: capacitar professor para o mesmo
B84: Ensino Fund. II - Arte.xlsx | C84: ARTES | D84: (EF06AR20) Identificar e manipular diferentes formas de utilização de fontes sonoras, materiais sonoros e técnicas em práticas de composição/ criação, execução e apreciação musical, privilegiando aquelas presentes nas culturas infanto-juvenis. | F84: SIM | G84: espaço adequado para desenvolvimento dessas habilidades.(questões de sonorização) instrumentos musicais(sopro, corda, percussão, teclas)
B85: Ensino Fund. II - Arte.xlsx | C85: ARTES | D85: (EF06AR21) Identificar e manipular diferentes formas de registro musical, incluindo formas distintas de notação musical, bem como procedimentos e técnicas de registro em áudio e audiovisual (CD). | F85: SIM | G85: recursos materiais
B86: Ensino Fund. II - Arte.xlsx | C86: ARTES | D86: (EF06AR22) Identificar e manipular diferentes tecnologias para apreciar, produzir, registrar e compartilhar práticas e repertórios musicais de modo ético, considerando, em especial, as culturas infanto-juvenis (CD). | F86: SIM
B87: Ensino Fund. II - Arte.xlsx | C87: ARTES | D87: (EF06AR23) Reconhecer e valorizar o patrimônio musical, material e imaterial, de culturas diversas, em especial as de matriz africanas e indígenas, em diferentes épocas, privilegiando as culturas infanto-juvenis (CIA, DHC). | F87: SIM
B88: Ensino Fund. II - Arte.xlsx | C88: ARTES | D88: (EF06AR24) Compreender usos e funções da música em seus contextos de produção e circulação, considerando, em especial, contextos próximos aos estudantes e as culturas infanto-juvenis (ES). | F88: SIM
B89: Ensino Fund. II - Arte.xlsx | C89: ARTES | D89: (EF06AR26) Interagir criticamente com diferentes dispositivos e equipamentos culturais de circulação da música e do conhecimento musical, considerando, em especial, aqueles que contemplam as culturas infanto-juvenis (ES, DHC). | F89: SIM | G89: proporcionar recursos materias, interdisciplinariedade
B90: Ensino Fund. II - Arte.xlsx | C90: ARTES | D90: (EF06AR27) Compreender práticas musicais nas suas relações com as esferas social, cultural, política, histórica, econômica, estética e ética, considerando, em especial, contextos próximos aos estudantes e as culturas infanto-juvenis(ES, CIA, DHC). | F90: SIM
B91: Ensino Fund. II - Arte.xlsx | C91: ARTES | D91: (EF06AR28) Exercitar diferentes funções teatrais e compreender os limites e desafios do trabalho artístico coletivo e colaborativo (DHC). | F91: SIM | G91: espaço adequado
B92: Ensino Fund. II - Arte.xlsx | C92: ARTES | D92: (EF06AR29) Conhecer os vocabulários e os elementos constitutivos do teatro. | F92: SIM
B93: Ensino Fund. II - Arte.xlsx | C93: ARTES | D93: (EF06AR30) Conhecer os modos de criação, produção, divulgação, circulação e organização da atuação profissional em teatro (ES). | F93: SIM
B94: Ensino Fund. II - Arte.xlsx | C94: ARTES | D94: (EF06AR31) Experimentar a gestualidade, as sonoridades corporais e as vocalidades de maneira imaginativa, na improvisação teatral. | F94: SIM | G94: espaço adequado
B95: Ensino Fund. II - Arte.xlsx | C95: ARTES | D95: (EF06AR32) Compor acontecimentos cênicos e caracterizar diferentes personagens, tipos e figuras, a partir de textos dramáticos, de músicas, de imagens, de narrativas ou de outros elementos dados ou inventados. | F95: SIM | G95: espaço adequado
B96: Ensino Fund. II - Arte.xlsx | C96: ARTES | D96: (EF06AR33) Experimentar diferentes estilos cênicos, contextualizando-os no tempo e no espaço. | F96: SIM | G96: Participação das escolas nas manifestações culturais locais
B97: Ensino Fund. II - Arte.xlsx | C97: ARTES | D97: (EF06AR34) Experimentar elementos de diferentes matrizes estéticas e culturais, investigando suas teatralidades e possibilidades de encenações (CIA, DHC). | F97: SIM | G97: Teatro musical
B98: Ensino Fund. II - Arte.xlsx | C98: ARTES | D98: (EF06AR35) Pesquisar e criar formas de dramaturgias e espaços cênicos para o acontecimento teatral, em diálogo com o teatro contemporâneo. | F98: SIM | G98: espaço adequado
B99: Ensino Fund. II - Arte.xlsx | C99: ARTES | D99: (EF06AR36) Pesquisar, conhecer e apreciar o trabalho de grupos de teatro, de dramaturgos, de atores e diretores locais, regionais, nacionais e estrangeiros, do passado e do presente (CIA). | F99: SIM | G99: Teatro musical
B100: Ensino Fund. II - Arte.xlsx | C100: ARTES | D100: (EF06AR37) Refletir sobre as experiências teatrais desenvolvidas em aula de modo a problematizar as questões de gênero, corpo e sexualidade. | F100: SIM | G100: Convidados especializados para tratar dos assuntos (genero, corpo e sex. e quest. racial)
B101: Ensino Fund. II - Arte.xlsx | C101: ARTES | D101: (EF06AR38) Criar acontecimentos cênicos, relacionando elementos como figurinos, adereços, cenário, iluminação, sonoplastia, tecnologias da comunicação e informação, jogo, textos, improvisações e as relações com o espectador. (CIA, DHC, CD). | F101: SIM | G101: Trabalho interdisciplinar de todos os conteúdos junto as artes dentro das 4 linguagens de arte.
B102: Ensino Fund. II - CieÌ‚ncias.xlsx | C102: CIÊNCIAS DA NATUREZA | D102: EF06CI01) Reconhecer o solo como fonte de materiais, identificando composição e características de tipos diversos de solos e subsolos brasileiros, estabelecendo relações e atividades agrícolas e extrativas. | E102: SIM
B103: Ensino Fund. II - CieÌ‚ncias.xlsx | C103: CIÊNCIAS DA NATUREZA | D103: (EF07CI01) Realizar experimentos simples para determinar propriedades físicas, como densidade, temperatura de ebulição, temperatura de fusão, solubilidade, condutibilidade elétrica, fazendo registros e propondo critérios baseados nas propriedades para classificar os materiais. | E103: SIM
B104: Ensino Fund. II - CieÌ‚ncias.xlsx | C104: CIÊNCIAS DA NATUREZA | D104: (EF08CI01) Compreender processos de separação de materiais no sistema produtivo e no cotidiano, como a produção de sal de cozinha, a destilação de petróleo, entre outros, e propor métodos para a separação de sistemas, como óleo e água, areia e água, mistura de diferentes plásticos ou metais. | E104: SIM
B105: Ensino Fund. II - CieÌ‚ncias.xlsx | C105: CIÊNCIAS DA NATUREZA | D105: (EF09CI01) Comparar dados de quantidades de reagentes e produtos envolvidas em transformações químicas, estabelecendo proporções entre as massas que permitem prever quantidades de materiais que reagem e que se formam. | E105: SIM
B106: Ensino Fund. II - CieÌ‚ncias.xlsx | C106: CIÊNCIAS DA NATUREZA | D106: (EF08CI02) Verificar, experimentalmente, evidências comuns de transformações químicas e utilizar as propriedades físicas das substâncias para reconhecer a formação de novos materiais nessas transformações. | E106: SIM
B107: Ensino Fund. II - CieÌ‚ncias.xlsx | C107: CIÊNCIAS DA NATUREZA | E107: SIM
B108: Ensino Fund. II - CieÌ‚ncias.xlsx | C108: CIÊNCIAS DA NATUREZA | E108: SIM
B109: Ensino Fund. II - CieÌ‚ncias.xlsx | C109: CIÊNCIAS DA NATUREZA | D109: (EF08CI03) Buscar informações sobre tipos de combustíveis e de técnicas metalúrgicas, utilizados ao longo do tempo, para reconhecer avanços, questões econômicas e problemas ambientais causados pela produção e uso desses materiais. | E109: SIM
B110: Ensino Fund. II - CieÌ‚ncias.xlsx | C110: CIÊNCIAS DA NATUREZA | E110: SIM
B111: Ensino Fund. II - CieÌ‚ncias.xlsx | C111: CIÊNCIAS DA NATUREZA | D111: (EF06CI03) Investigar a interdependência entre os ciclos naturais da água (superficial e subterrâneo) e o padrão de circulação atmosférica e sua importância para formação de solos e da vida na Terra, e seu papel em mudanças climáticas atuais. | E111: SIM
B112: Ensino Fund. II - CieÌ‚ncias.xlsx | C112: CIÊNCIAS DA NATUREZA | D112: (EF07CI03) Produzir um diagrama que apresente fluxos de energia e matéria nos ecossistemas, mostrando as relações entre cadeias alimentares e teias alimentares. | E112: SIM
B113: Ensino Fund. II - CieÌ‚ncias.xlsx | C113: CIÊNCIAS DA NATUREZA | D113: (EF08CI04) Avaliar alterações econômicas, culturais e sociais, devidas a novas tecnologias, como automação, e informatização e novos materiais, no mundo do trabalho e nos processos de produção do campo. | E113: SIM
B114: Ensino Fund. II - CieÌ‚ncias.xlsx | C114: CIÊNCIAS DA NATUREZA | D114: (EF09CI03) Classificar riscos a que se expõem populações humanas, desde secas, erosão, deslizamentos, epidemias, até poluição de águas e do ar, identificando suas causas e efeitos sobre o ambiente e na vida humana. | E114: SIM | G114: substituir termo classificar por reconhecer.
B115: Ensino Fund. II - CieÌ‚ncias.xlsx | C115: CIÊNCIAS DA NATUREZA | D115: (EF06CI04) Reconhecer o efeito estufa e sua importância para a vida na Terra, e discutir o impacto do uso de combustíveis fósseis pelos meios de transporte e indústria na ampliação nociva do efeito estufa e outros impactos ambientais. | E115: SIM | G115: transferido parta o setimo ano.
B116: Ensino Fund. II - CieÌ‚ncias.xlsx | C116: CIÊNCIAS DA NATUREZA | D116: (EF07CI04) Relacionar a fotossíntese, a respiração celular e a combustão nos ciclos do carbono e do oxigênio para compreender o papel da vegetação na vida humana e animal, e discutir o impacto ambiental do desmatamento e das queimadas. | E116: NÃO
B117: Ensino Fund. II - CieÌ‚ncias.xlsx | C117: CIÊNCIAS DA NATUREZA | D117: (EF08CI05) Relacionar alterações climáticas regionais e globais a intervenções humanas e a processos naturais, discutindo iniciativas e responsabilidades que contribuam para o equilíbrio ambiental, como mudanças culturais e tecnológicas. | E117: SIM
B118: Ensino Fund. II - CieÌ‚ncias.xlsx | C118: CIÊNCIAS DA NATUREZA | D118: (EF09CI04) Enumerar efeitos sobre o organismo humano dos principais poluentes do ar, da água e do solo, e avaliar e propor iniciativas individuais e coletivas para evitar os danos que produzem. | E118: NÃO | G118: verbos inadequados.
B119: Ensino Fund. II - CieÌ‚ncias.xlsx | C119: CIÊNCIAS DA NATUREZA | D119: (EF06CI05) Reconhecer a Terra como formada por esferas aproximadamente concêntricas, de diferentes constituições e propriedades, do seu interior até a atmosfera. | E119: SIM
B120: Ensino Fund. II - CieÌ‚ncias.xlsx | C120: CIÊNCIAS DA NATUREZA | D120: (EF07CI05) Interpretar fenômenos naturais como vulcões, terremotos e tsunamis a partir do modelo das placas tectônicas, buscar compreender a rara ocorrência desses fenômenos no Brasil. | E120: SIM
B121: Ensino Fund. II - CieÌ‚ncias.xlsx | C121: CIÊNCIAS DA NATUREZA | D121: (EF08CI06) Realizar experimentos, como a observação e registro de uma vara ao longo do dia em diferentes períodos do ano, que revelem a rotação e translação do planeta Terra, e produzir maquete para representar o sistema solar que ilustre esses movimentos. | E121: SIM | G121: constar apenas objetivos.Claro como procedimento.
B122: Ensino Fund. II - CieÌ‚ncias.xlsx | C122: CIÊNCIAS DA NATUREZA | D122: (EF09CI05) Efetuar simulações ou representações do tamanho, distância movimento relativos dos planetas e do Sol, assim como de sua localização na galáxia para saber comparar as distâncias no interior do sistema solar e da galáxia. | E122: SIM | G122: Claro como experimento.
B123: Ensino Fund. II - CieÌ‚ncias.xlsx | C123: CIÊNCIAS DA NATUREZA | D123: (EF06CI06) Conjecturar sobre a relação entre os corpos celestes serem esféricos e sua formação devida à atração gravitacional. | E123: NÃO
B124: Ensino Fund. II - CieÌ‚ncias.xlsx | C124: CIÊNCIAS DA NATUREZA | D124: (EF07CI06) Analisar a teoria da deriva dos continentes, apresentando argumentos que a justificam, como os formatos das costas brasileira e africana. | E124: SIM
B125: Ensino Fund. II - CieÌ‚ncias.xlsx | C125: CIÊNCIAS DA NATUREZA | D125: (EF08CI07) Relacionar mudanças climáticas em diferentes latitudes, associadas às estações do ano `a inclinação do eixo de rotação da Terra, relativamente ao seu plano de translação. | E125: SIM
B126: Ensino Fund. II - CieÌ‚ncias.xlsx | C126: CIÊNCIAS DA NATUREZA | D126: (EF09CI06) Compreender que diferentes culturas formulam cosmovisões distintas, identificando as diferentes leituras do céu e de suas constelações e formulação de distintas explicações sobre a origem da Terra, do Sol ou do Sistema Solar. | E126: SIM | G126: inserir no sexto ano.
B127: Ensino Fund. II - CieÌ‚ncias.xlsx | C127: CIÊNCIAS DA NATUREZA | D127: (EF06CI07) Compreender a célula como unidade fundamental da vida, com sistema altamente ordenado, que constitui organismos e tecidos, e interage com o ambiente. | E127: SIM
B128: Ensino Fund. II - CieÌ‚ncias.xlsx | C128: CIÊNCIAS DA NATUREZA | D128: (EF07CI07) Compreender a reprodução como essencial a todas as formas de vida e comparar os diferentes processos de reprodução. | E128: SIM
B129: Ensino Fund. II - CieÌ‚ncias.xlsx | C129: CIÊNCIAS DA NATUREZA | D129: (EF08CI08) Compreender o conceito de seleção natural para explicar a origem, evolução e diversidade das espécies, relacionando a reprodução sexuada à uma maior variedade de espécimes. | E129: SIM
B130: Ensino Fund. II - CieÌ‚ncias.xlsx | C130: CIÊNCIAS DA NATUREZA | D130: (EF09CI07) Compreender processos de transmissão de características hereditárias, estabelecendo relações entre ancestrais e descendentes, entre o nível molecular e o do organismo. | E130: SIM
B131: Ensino Fund. II - CieÌ‚ncias.xlsx | C131: CIÊNCIAS DA NATUREZA | D131: (EF06CI08) Caracterizar seres vivos como uma complexa organização de tecidos e órgãos, com diferentes funções, constituídos de diferentes composições celulares. | E131: SIM
B132: Ensino Fund. II - CieÌ‚ncias.xlsx | C132: CIÊNCIAS DA NATUREZA | D132: (EF07CI08) Classificar espécies em termos da forma de reprodução, sexuada ou não, apontando processos bioquímicos, como a produção de feromônios, ou em que diferentes espécies interagem para o processo reprodutivo, como a polinização. | E132: SIM
B133: Ensino Fund. II - CieÌ‚ncias.xlsx | C133: CIÊNCIAS DA NATUREZA | D133: (EF06CI09) Esquematizar por meio de desenhos e montar circuitos elétricos constituídos de pilha/ bateria, fios e uma lâmpada ou outros dispositivos, explicitando destaque à continuidade da corrente e comparar a circuitos elétricos residenciais. | E133: SIM
B134: Ensino Fund. II - CieÌ‚ncias.xlsx | C134: CIÊNCIAS DA NATUREZA | D134: (EF07CI09) Investigar e relatar por escrito, ou por diagramas, a simetria bilateral na maioria dos animais e em máquinas que voam ou se locomovem e identificar sua relação com o equilíbrio desses sistemas. | E134: SIM
B135: Ensino Fund. II - CieÌ‚ncias.xlsx | C135: CIÊNCIAS DA NATUREZA | D135: (EF08CI10) Planejar e construir uma câmara escura, com ou sem lente, com ou sem diafragma, compará-la com câmeras, o olho humano e de outros animais. | E135: SIM
B136: Ensino Fund. II - CieÌ‚ncias.xlsx | C136: CIÊNCIAS DA NATUREZA | D136: (EF09CI09) Planejar e executar experimentos que mostram diferentes cores de luz pela composição das intensidades das três cores primárias e também a relação entre cor do objeto e a cor da luz que o ilumina. | E136: SIM
B137: Ensino Fund. II - CieÌ‚ncias.xlsx | C137: CIÊNCIAS DA NATUREZA | D137: (EF06CI10) Estabelecer uma analogia entre os órgãos do sentido e o cérebro e a relação entre dispositivos como microfones e câmeras e os sistemas de registro e comunicação. | E137: NÃO
B138: Ensino Fund. II - CieÌ‚ncias.xlsx | C138: CIÊNCIAS DA NATUREZA | D138: EF06CI01) Reconhecer o solo como fonte de materiais, identificando composição e características de tipos diversos de solos e subsolos brasileiros, estabelecendo relações e atividades agrícolas e extrativas. | F138: SIM
B139: Ensino Fund. II - CieÌ‚ncias.xlsx | C139: CIÊNCIAS DA NATUREZA | D139: (EF07CI01) Realizar experimentos simples para determinar propriedades físicas, como densidade, temperatura de ebulição, temperatura de fusão, solubilidade, condutibilidade elétrica, fazendo registros e propondo critérios baseados nas propriedades para classificar os materiais. | F139: SIM
B140: Ensino Fund. II - CieÌ‚ncias.xlsx | C140: CIÊNCIAS DA NATUREZA | D140: (EF08CI01) Compreender processos de separação de materiais no sistema produtivo e no cotidiano, como a produção de sal de cozinha, a destilação de petróleo, entre outros, e propor métodos para a separação de sistemas, como óleo e água, areia e água, mistura de diferentes plásticos ou metais. | F140: SIM
B141: Ensino Fund. II - CieÌ‚ncias.xlsx | C141: CIÊNCIAS DA NATUREZA | D141: (EF09CI01) Comparar dados de quantidades de reagentes e produtos envolvidas em transformações químicas, estabelecendo proporções entre as massas que permitem prever quantidades de materiais que reagem e que se formam. | F141: SIM
B142: Ensino Fund. II - CieÌ‚ncias.xlsx | C142: CIÊNCIAS DA NATUREZA | D142: (EF08CI02) Verificar, experimentalmente, evidências comuns de transformações químicas e utilizar as propriedades físicas das substâncias para reconhecer a formação de novos materiais nessas transformações. | F142: SIM
B143: Ensino Fund. II - CieÌ‚ncias.xlsx | C143: CIÊNCIAS DA NATUREZA | F143: SIM
B144: Ensino Fund. II - CieÌ‚ncias.xlsx | C144: CIÊNCIAS DA NATUREZA | F144: SIM
B145: Ensino Fund. II - CieÌ‚ncias.xlsx | C145: CIÊNCIAS DA NATUREZA | D145: (EF08CI03) Buscar informações sobre tipos de combustíveis e de técnicas metalúrgicas, utilizados ao longo do tempo, para reconhecer avanços, questões econômicas e problemas ambientais causados pela produção e uso desses materiais. | F145: SIM
B146: Ensino Fund. II - CieÌ‚ncias.xlsx | C146: CIÊNCIAS DA NATUREZA | F146: SIM
B147: Ensino Fund. II - CieÌ‚ncias.xlsx | C147: CIÊNCIAS DA NATUREZA | D147: (EF06CI03) Investigar a interdependência entre os ciclos naturais da água (superficial e subterrâneo) e o padrão de circulação atmosférica e sua importância para formação de solos e da vida na Terra, e seu papel em mudanças climáticas atuais. | F147: SIM
B148: Ensino Fund. II - CieÌ‚ncias.xlsx | C148: CIÊNCIAS DA NATUREZA | D148: (EF07CI03) Produzir um diagrama que apresente fluxos de energia e matéria nos ecossistemas, mostrando as relações entre cadeias alimentares e teias alimentares. | F148: SIM
B149: Ensino Fund. II - CieÌ‚ncias.xlsx | C149: CIÊNCIAS DA NATUREZA | D149: (EF08CI04) Avaliar alterações econômicas, culturais e sociais, devidas a novas tecnologias, como automação, e informatização e novos materiais, no mundo do trabalho e nos processos de produção do campo. | F149: SIM
B150: Ensino Fund. II - CieÌ‚ncias.xlsx | C150: CIÊNCIAS DA NATUREZA | D150: (EF09CI03) Classificar riscos a que se expõem populações humanas, desde secas, erosão, deslizamentos, epidemias, até poluição de águas e do ar, identificando suas causas e efeitos sobre o ambiente e na vida humana. | F150: SIM | G150: substituir termo classificar por reconhecer.
B151: Ensino Fund. II - CieÌ‚ncias.xlsx | C151: CIÊNCIAS DA NATUREZA | D151: (EF06CI04) Reconhecer o efeito estufa e sua importância para a vida na Terra, e discutir o impacto do uso de combustíveis fósseis pelos meios de transporte e indústria na ampliação nociva do efeito estufa e outros impactos ambientais. | F151: NÃO | G151: transferido parta o setimo ano.
B152: Ensino Fund. II - CieÌ‚ncias.xlsx | C152: CIÊNCIAS DA NATUREZA | D152: (EF07CI04) Relacionar a fotossíntese, a respiração celular e a combustão nos ciclos do carbono e do oxigênio para compreender o papel da vegetação na vida humana e animal, e discutir o impacto ambiental do desmatamento e das queimadas. | F152: SIM
B153: Ensino Fund. II - CieÌ‚ncias.xlsx | C153: CIÊNCIAS DA NATUREZA | D153: (EF08CI05) Relacionar alterações climáticas regionais e globais a intervenções humanas e a processos naturais, discutindo iniciativas e responsabilidades que contribuam para o equilíbrio ambiental, como mudanças culturais e tecnológicas. | F153: SIM
B154: Ensino Fund. II - CieÌ‚ncias.xlsx | C154: CIÊNCIAS DA NATUREZA | D154: (EF09CI04) Enumerar efeitos sobre o organismo humano dos principais poluentes do ar, da água e do solo, e avaliar e propor iniciativas individuais e coletivas para evitar os danos que produzem. | F154: NÃO | G154: verbos inadequados.
B155: Ensino Fund. II - CieÌ‚ncias.xlsx | C155: CIÊNCIAS DA NATUREZA | D155: (EF06CI05) Reconhecer a Terra como formada por esferas aproximadamente concêntricas, de diferentes constituições e propriedades, do seu interior até a atmosfera. | F155: SIM
B156: Ensino Fund. II - CieÌ‚ncias.xlsx | C156: CIÊNCIAS DA NATUREZA | D156: (EF07CI05) Interpretar fenômenos naturais como vulcões, terremotos e tsunamis a partir do modelo das placas tectônicas, buscar compreender a rara ocorrência desses fenômenos no Brasil. | F156: SIM
B157: Ensino Fund. II - CieÌ‚ncias.xlsx | C157: CIÊNCIAS DA NATUREZA | D157: (EF08CI06) Realizar experimentos, como a observação e registro de uma vara ao longo do dia em diferentes períodos do ano, que revelem a rotação e translação do planeta Terra, e produzir maquete para representar o sistema solar que ilustre esses movimentos. | F157: NÃO | G157: constar apenas objetivos.Claro como procedimento.
B158: Ensino Fund. II - CieÌ‚ncias.xlsx | C158: CIÊNCIAS DA NATUREZA | D158: (EF09CI05) Efetuar simulações ou representações do tamanho, distância movimento relativos dos planetas e do Sol, assim como de sua localização na galáxia para saber comparar as distâncias no interior do sistema solar e da galáxia. | F158: NÃO | G158: Claro como experimento.
B159: Ensino Fund. II - CieÌ‚ncias.xlsx | C159: CIÊNCIAS DA NATUREZA | D159: (EF06CI06) Conjecturar sobre a relação entre os corpos celestes serem esféricos e sua formação devida à atração gravitacional. | F159: NÃO
B160: Ensino Fund. II - CieÌ‚ncias.xlsx | C160: CIÊNCIAS DA NATUREZA | D160: (EF07CI06) Analisar a teoria da deriva dos continentes, apresentando argumentos que a justificam, como os formatos das costas brasileira e africana. | F160: SIM
B161: Ensino Fund. II - CieÌ‚ncias.xlsx | C161: CIÊNCIAS DA NATUREZA | D161: (EF08CI07) Relacionar mudanças climáticas em diferentes latitudes, associadas às estações do ano `a inclinação do eixo de rotação da Terra, relativamente ao seu plano de translação. | F161: SIM
B162: Ensino Fund. II - CieÌ‚ncias.xlsx | C162: CIÊNCIAS DA NATUREZA | D162: (EF09CI06) Compreender que diferentes culturas formulam cosmovisões distintas, identificando as diferentes leituras do céu e de suas constelações e formulação de distintas explicações sobre a origem da Terra, do Sol ou do Sistema Solar. | F162: SIM | G162: inserir no sexto ano.
B163: Ensino Fund. II - CieÌ‚ncias.xlsx | C163: CIÊNCIAS DA NATUREZA | D163: (EF06CI07) Compreender a célula como unidade fundamental da vida, com sistema altamente ordenado, que constitui organismos e tecidos, e interage com o ambiente. | F163: SIM
B164: Ensino Fund. II - CieÌ‚ncias.xlsx | C164: CIÊNCIAS DA NATUREZA | D164: (EF07CI07) Compreender a reprodução como essencial a todas as formas de vida e comparar os diferentes processos de reprodução. | F164: SIM
B165: Ensino Fund. II - CieÌ‚ncias.xlsx | C165: CIÊNCIAS DA NATUREZA | D165: (EF08CI08) Compreender o conceito de seleção natural para explicar a origem, evolução e diversidade das espécies, relacionando a reprodução sexuada à uma maior variedade de espécimes. | F165: SIM
B166: Ensino Fund. II - CieÌ‚ncias.xlsx | C166: CIÊNCIAS DA NATUREZA | D166: (EF09CI07) Compreender processos de transmissão de características hereditárias, estabelecendo relações entre ancestrais e descendentes, entre o nível molecular e o do organismo. | F166: SIM
B167: Ensino Fund. II - CieÌ‚ncias.xlsx | C167: CIÊNCIAS DA NATUREZA | D167: (EF06CI08) Caracterizar seres vivos como uma complexa organização de tecidos e órgãos, com diferentes funções, constituídos de diferentes composições celulares. | F167: SIM
B168: Ensino Fund. II - CieÌ‚ncias.xlsx | C168: CIÊNCIAS DA NATUREZA | D168: (EF07CI08) Classificar espécies em termos da forma de reprodução, sexuada ou não, apontando processos bioquímicos, como a produção de feromônios, ou em que diferentes espécies interagem para o processo reprodutivo, como a polinização. | F168: SIM
B169: Ensino Fund. II - CieÌ‚ncias.xlsx | C169: CIÊNCIAS DA NATUREZA | D169: (EF06CI09) Esquematizar por meio de desenhos e montar circuitos elétricos constituídos de pilha/ bateria, fios e uma lâmpada ou outros dispositivos, explicitando destaque à continuidade da corrente e comparar a circuitos elétricos residenciais. | F169: SIM
B170: Ensino Fund. II - CieÌ‚ncias.xlsx | C170: CIÊNCIAS DA NATUREZA | D170: (EF07CI09) Investigar e relatar por escrito, ou por diagramas, a simetria bilateral na maioria dos animais e em máquinas que voam ou se locomovem e identificar sua relação com o equilíbrio desses sistemas. | F170: SIM
B171: Ensino Fund. II - CieÌ‚ncias.xlsx | C171: CIÊNCIAS DA NATUREZA | D171: (EF08CI10) Planejar e construir uma câmara escura, com ou sem lente, com ou sem diafragma, compará-la com câmeras, o olho humano e de outros animais. | F171: SIM
B172: Ensino Fund. II - CieÌ‚ncias.xlsx | C172: CIÊNCIAS DA NATUREZA | D172: (EF06CI10) Estabelecer uma analogia entre os órgãos do sentido e o cérebro e a relação entre dispositivos como microfones e câmeras e os sistemas de registro e comunicação. | F172: NÃO
B173: Ensino Fund. II - EducacÌ§aÌƒo FiÌsica.xlsx | C173: EDUCAÇÃO FÍSICA | D173: (EF06EF01) Experimentar os elementos comuns de diversos tipos de esportes, com ênfase nos esportes técnico-combinatórios, de marca, de campo-e-taco, precisão e invasão. | E173: SIM
B174: Ensino Fund. II - EducacÌ§aÌƒo FiÌsica.xlsx | C174: EDUCAÇÃO FÍSICA | D174: (EF08EF01) Experimentar os elementos comuns de diversos tipos de esportes, com ênfase nos de precisão, rede/parede e de invasão. | E174: SIM
B175: Ensino Fund. II - EducacÌ§aÌƒo FiÌsica.xlsx | C175: EDUCAÇÃO FÍSICA | D175: (EF06EF02) Praticar uma ou mais modalidades esportivas, escolhidas pelo coletivo da escola, usando habilidades técnico-táticas básicas. | E175: SIM
B176: Ensino Fund. II - EducacÌ§aÌƒo FiÌsica.xlsx | C176: EDUCAÇÃO FÍSICA | D176: (EF08EF02) Praticar uma ou mais modalidades esportivas, escolhidas pelo coletivo da escola, usando habilidades técnico-táticas básicas, de forma proficiente, e combinações táticas e sistemas de jogo de forma elementar. | E176: SIM
B177: Ensino Fund. II - EducacÌ§aÌƒo FiÌsica.xlsx | C177: EDUCAÇÃO FÍSICA | D177: (EF06EF03) Fruir a experimentação de diversos tipos de esportes, valorizando o trabalho coletivo e o protagonismo. | E177: SIM
B178: Ensino Fund. II - EducacÌ§aÌƒo FiÌsica.xlsx | C178: EDUCAÇÃO FÍSICA | D178: (EF08EF03) Fruir a experimentação e apreciar diversos tipos de esportes, valorizando o trabalho coletivo e o protagonismo. | E178: SIM
B179: Ensino Fund. II - EducacÌ§aÌƒo FiÌsica.xlsx | C179: EDUCAÇÃO FÍSICA | D179: (EF06EF04) Formular e utilizar estratégias para identificar, analisar e buscar soluções nos desafios técnicos e táticos tanto dos esportes escolhidos para praticar de forma proficiente, como das modalidades experimentadas. | E179: NÃO | G179: O objetivo não apresenta clareza no tocante ao termo proficiente, e a não pertinência ao discordar da faixa etária proposta
B180: Ensino Fund. II - EducacÌ§aÌƒo FiÌsica.xlsx | C180: EDUCAÇÃO FÍSICA | D180: (EF08EF04) Formular e utilizar estratégias para identificar, analisar e buscar soluções nos desafios técnicos e táticos tanto dos esportes escolhidos para praticar de forma proficiente, como das modalidades experimentadas. | E180: NÃO | G180: O objetivo apresentado foi aprovado principalmente devido a carga horária incompatível com a possibilidade da proficiência
B181: Ensino Fund. II - EducacÌ§aÌƒo FiÌsica.xlsx | C181: EDUCAÇÃO FÍSICA | D181: (EF06EF05) Contribuir no enfrentamento de situações de injustiça e preconceito, geradas e/ou presentes no contexto da prática esportiva, com ênfase nas problemáticas de gênero e na produção de alternativas democráticas para sua superação.[DHC] | E181: SIM
B182: Ensino Fund. II - EducacÌ§aÌƒo FiÌsica.xlsx | C182: EDUCAÇÃO FÍSICA | D182: (EF08EF05) Enfrentar, com autonomia, situações de injustiça e preconceito geradas e/ou presentes no contexto da prática esportiva e produzir alternativas para sua superação, com especial atenção nas questões étnico-raciais e indígenas.[DHC] | E182: SIM
B183: Ensino Fund. II - EducacÌ§aÌƒo FiÌsica.xlsx | C183: EDUCAÇÃO FÍSICA | D183: (EF06EF06) Identificar os elementos técnicos ou técnico-táticos individuais e as principais regras das modalidades praticadas. | E183: SIM
B184: Ensino Fund. II - EducacÌ§aÌƒo FiÌsica.xlsx | C184: EDUCAÇÃO FÍSICA | D184: (EF08EF06) Identificar os elementos técnicos ou técnico-táticos individuais, combinações táticas, sistemas de jogo e regras das modalidades esportivas praticadas. | E184: SIM
B185: Ensino Fund. II - EducacÌ§aÌƒo FiÌsica.xlsx | C185: EDUCAÇÃO FÍSICA | D185: (EF06EF07) Distinguir os diversos tipos de esportes e recriar suas possibilidades de prática. | E185: SIM
B186: Ensino Fund. II - EducacÌ§aÌƒo FiÌsica.xlsx | C186: EDUCAÇÃO FÍSICA | D186: EF08EF07) Diferenciar e reconhecer as modalidades esportivas com base nos critérios da lógica interna e recriar suas possibilidades de prática. | E186: SIM
B187: Ensino Fund. II - EducacÌ§aÌƒo FiÌsica.xlsx | C187: EDUCAÇÃO FÍSICA | D187: (EF06EF08) Diferenciar esporte de outras manifestações da cultura corporal de movimento. | E187: SIM
B188: Ensino Fund. II - EducacÌ§aÌƒo FiÌsica.xlsx | C188: EDUCAÇÃO FÍSICA | D188: (EF08EF08) Desempenhar e reconhecer diferentes papéis (ex.: árbitro, secretário, cronometrista, técnico, dirigente etc.) do mundo esportivo institucionalizado. | E188: SIM
B189: Ensino Fund. II - EducacÌ§aÌƒo FiÌsica.xlsx | C189: EDUCAÇÃO FÍSICA | D189: (EF06EF09) Compreender as transformações dos esportes, as possibilidades de recriá-los, bem como as implicações na organização e na prática das suas diferentes manifestações (profissional e comunitário/lazer). | E189: SIM
B190: Ensino Fund. II - EducacÌ§aÌƒo FiÌsica.xlsx | C190: EDUCAÇÃO FÍSICA | D190: (EF08EF09) Compreender criticamente a emergência e as transformações históricas do fenômeno esportivo e alguns de seus problemas (ex. “doping”, corrupção, violência etc.), bem como levantar hipóteses para sua modificação.[DCH] | E190: SIM
B191: Ensino Fund. II - EducacÌ§aÌƒo FiÌsica.xlsx | C191: EDUCAÇÃO FÍSICA | D191: (EF06EF10) Identificar os esportes praticados e os não praticados na comunidade e refletir sobre as características de seus praticantes. | E191: SIM
B192: Ensino Fund. II - EducacÌ§aÌƒo FiÌsica.xlsx | C192: EDUCAÇÃO FÍSICA | D192: EF08EF10) Analisar a forma como as mídias apresentam e influenciam os esportes. [CD] | E192: SIM
B193: Ensino Fund. II - EducacÌ§aÌƒo FiÌsica.xlsx | C193: EDUCAÇÃO FÍSICA | D193: (EF06EF11) Propor e produzir alternativas para experimentar esportes não disponíveis e/ou acessíveis na comunidade. | E193: SIM
B194: Ensino Fund. II - EducacÌ§aÌƒo FiÌsica.xlsx | C194: EDUCAÇÃO FÍSICA | D194: (EF08EF11) Identificar, avaliar e explorar locais disponíveis na comunidade para a prática de esportes. | E194: SIM | G194: Esse objetivo de aprendizagem nos parece ser de difícil execução
B195: Ensino Fund. II - EducacÌ§aÌƒo FiÌsica.xlsx | C195: EDUCAÇÃO FÍSICA | D195: (EF08EF12) Propor e produzir alternativas para, no tempo livre, praticar esporte na comunidade. | E195: SIM
B196: Ensino Fund. II - EducacÌ§aÌƒo FiÌsica.xlsx | C196: EDUCAÇÃO FÍSICA | D196: (EF06EF12) Experimentar e produzir composições ginásticas individuais e em grupos, a partir de diferentes temas, com e sem materiais. | E196: SIM
B197: Ensino Fund. II - EducacÌ§aÌƒo FiÌsica.xlsx | C197: EDUCAÇÃO FÍSICA | D197: (EF08EF13) Experimentar um ou mais programas de exercícios físicos. | E197: SIM
B198: Ensino Fund. II - EducacÌ§aÌƒo FiÌsica.xlsx | C198: EDUCAÇÃO FÍSICA | D198: (EF06EF13) Fruir a prática da ginástica de demonstração, valorizando o trabalho coletivo e criativo. | E198: SIM
B199: Ensino Fund. II - EducacÌ§aÌƒo FiÌsica.xlsx | C199: EDUCAÇÃO FÍSICA | D199: (EF08EF14) Fruir os exercícios físicos, em diferentes programas, valorizando as experiências sensíveis. | E199: SIM
B200: Ensino Fund. II - EducacÌ§aÌƒo FiÌsica.xlsx | C200: EDUCAÇÃO FÍSICA | D200: (EF06EF14) Formular e utilizar estratégias para solucionar desafios surgidos no trabalho de composição ginástica, a partir de diferentes temas, com e sem materiais. | E200: SIM
... 653 more rows

Sheet Resultados quantitativos
B2: Áreas | C2: Segmentos das áreas | D2: Quantidade de objetivos por segmento | E2: Quantidade de objetivos indicados com SIM em CLAREZA | F2: Quantidade de objetivos indicados com NÃO em CLAREZA | G2: Quantidade de objetivos indicados com SIM em PERTINÊNCIA | H2: Quantidade de objetivos indicados com NÃO em PERTINÊNCIA
B3: Educação Infantil (Bebês) | C3: O eu, o outro, o nós | D3: 5 | E3: =COUNTIFS(CONSOLIDAÇÃO!C:C,"O eu, o outro, o nós - Bebês",CONSOLIDAÇÃO!E:E,"SIM") -> 0 | F3: =COUNTIFS(CONSOLIDAÇÃO!C:C,"O eu, o outro, o nós - Bebês",CONSOLIDAÇÃO!E:E,"NÃO") -> 1 | G3: =COUNTIFS(CONSOLIDAÇÃO!C:C,"O eu, o outro, o nós - Bebês",CONSOLIDAÇÃO!F:F,"SIM") -> 0 | H3: =COUNTIFS(CONSOLIDAÇÃO!C:C,"O eu, o outro, o nós - Bebês",CONSOLIDAÇÃO!F:F,"NÃO") -> 0
C4: Corpo, gestos e mov. | D4: 5 | E4: =COUNTIFS(CONSOLIDAÇÃO!C:C,"Corpo, gestos e mov. - Bebês",CONSOLIDAÇÃO!E:E,"SIM") -> 0 | F4: =COUNTIFS(CONSOLIDAÇÃO!C:C,"Corpo, gestos e mov. - Bebês",CONSOLIDAÇÃO!E:E,"NÃO") -> 0 | G4: =COUNTIFS(CONSOLIDAÇÃO!C:C,"Corpo, gestos e mov. - Bebês",CONSOLIDAÇÃO!F:F,"SIM") -> 0 | H4: =COUNTIFS(CONSOLIDAÇÃO!C:C,"Corpo, gestos e mov. - Bebês",CONSOLIDAÇÃO!F:F,"NÃO") -> 0
C5: Escuta, fala, pens. | D5: 4 | E5: =COUNTIFS(CONSOLIDAÇÃO!C:C,"Escuta, fala, pens. - Bebês",CONSOLIDAÇÃO!E:E,"SIM") -> 0 | F5: =COUNTIFS(CONSOLIDAÇÃO!C:C,"Escuta, fala, pens. - Bebês",CONSOLIDAÇÃO!E:E,"NÃO") -> 0 | G5: =COUNTIFS(CONSOLIDAÇÃO!C:C,"Escuta, fala, pens. - Bebês",CONSOLIDAÇÃO!F:F,"SIM") -> 0 | H5: =COUNTIFS(CONSOLIDAÇÃO!C:C,"Escuta, fala, pens. - Bebês",CONSOLIDAÇÃO!F:F,"NÃO") -> 0
C6: Traços, sons, formas | D6: 5 | E6: =COUNTIFS(CONSOLIDAÇÃO!C:C,"Traços, sons, formas - Bebês",CONSOLIDAÇÃO!E:E,"SIM") -> 0 | F6: =COUNTIFS(CONSOLIDAÇÃO!C:C,"Traços, sons, formas - Bebês",CONSOLIDAÇÃO!E:E,"NÃO") -> 0 | G6: =COUNTIFS(CONSOLIDAÇÃO!C:C,"Traços, sons, formas - Bebês",CONSOLIDAÇÃO!F:F,"SIM") -> 0 | H6: =COUNTIFS(CONSOLIDAÇÃO!C:C,"Traços, sons, formas - Bebês",CONSOLIDAÇÃO!F:F,"NÃO") -> 0
C7: Espaços, tempos, qnt. | D7: 4 | E7: =COUNTIFS(CONSOLIDAÇÃO!C:C,"Espaços, tempos, qnt. - Bebês",CONSOLIDAÇÃO!E:E,"SIM") -> 0 | F7: =COUNTIFS(CONSOLIDAÇÃO!C:C,"Espaços, tempos, qnt. - Bebês",CONSOLIDAÇÃO!E:E,"NÃO") -> 0 | G7: =COUNTIFS(CONSOLIDAÇÃO!C:C,"Espaços, tempos, qnt. - Bebês",CONSOLIDAÇÃO!F:F,"SIM") -> 0 | H7: =COUNTIFS(CONSOLIDAÇÃO!C:C,"Espaços, tempos, qnt. - Bebês",CONSOLIDAÇÃO!F:F,"NÃO") -> 0
C8: TOTAL DA ÁREA | D8: =SUM(D3:D7) -> 23 | E8: =SUM(E3:E7) -> 0 | F8: 1 | G8: =SUM(G3:G7) -> 0 | H8: 0
D9: =E8/D8 -> 0 | F9: =F8/D8 -> 0.04347826087 | G9: =G8/D8 -> 0 | H9: =H8/D8 -> 0
B10: Educação Infantil (Bem pequenas) | C10: O eu, o outro, o nós | D10: 5 | E10: =COUNTIFS(CONSOLIDAÇÃO!C:C,"O eu, o outro, o nós - BP",CONSOLIDAÇÃO!E:E,"SIM") -> 0 | F10: =COUNTIFS(CONSOLIDAÇÃO!C:C,"O eu, o outro, o nós - BP",CONSOLIDAÇÃO!E:E,"NÃO") -> 0 | G10: =COUNTIFS(CONSOLIDAÇÃO!C:C,"O eu, o outro, o nós - BP",CONSOLIDAÇÃO!F:F,"SIM") -> 1 | H10: =COUNTIFS(CONSOLIDAÇÃO!C:C,"O eu, o outro, o nós - BP",CONSOLIDAÇÃO!F:F,"NÃO") -> 0
C11: Corpo, gestos e mov. | D11: 5 | E11: =COUNTIFS(CONSOLIDAÇÃO!C:C,"Corpo, gestos e mov. - BP",CONSOLIDAÇÃO!E:E,"SIM") -> 0 | F11: =COUNTIFS(CONSOLIDAÇÃO!C:C,"Corpo, gestos e mov. - BP",CONSOLIDAÇÃO!E:E,"NÃO") -> 1 | G11: =COUNTIFS(CONSOLIDAÇÃO!C:C,"Corpo, gestos e mov. - BP",CONSOLIDAÇÃO!F:F,"SIM") -> 1 | H11: =COUNTIFS(CONSOLIDAÇÃO!C:C,"Corpo, gestos e mov. - BP",CONSOLIDAÇÃO!F:F,"NÃO") -> 0
C12: Escuta, fala, pens. | D12: 5 | E12: =COUNTIFS(CONSOLIDAÇÃO!C:C,"Escuta, fala, pens. - BP",CONSOLIDAÇÃO!E:E,"SIM") -> 0 | F12: =COUNTIFS(CONSOLIDAÇÃO!C:C,"Escuta, fala, pens. - BP",CONSOLIDAÇÃO!E:E,"NÃO") -> 0 | G12: =COUNTIFS(CONSOLIDAÇÃO!C:C,"Escuta, fala, pens. - BP",CONSOLIDAÇÃO!F:F,"SIM") -> 0 | H12: =COUNTIFS(CONSOLIDAÇÃO!C:C,"Escuta, fala, pens. - BP",CONSOLIDAÇÃO!F:F,"NÃO") -> 0
C13: Traços, sons, formas | D13: 5 | E13: =COUNTIFS(CONSOLIDAÇÃO!C:C,"Traços, sons, formas - BP",CONSOLIDAÇÃO!E:E,"SIM") -> 0 | F13: =COUNTIFS(CONSOLIDAÇÃO!C:C,"Traços, sons, formas - BP",CONSOLIDAÇÃO!E:E,"NÃO") -> 0 | G13: =COUNTIFS(CONSOLIDAÇÃO!C:C,"Traços, sons, formas - BP",CONSOLIDAÇÃO!F:F,"SIM") -> 0 | H13: =COUNTIFS(CONSOLIDAÇÃO!C:C,"Traços, sons, formas - BP",CONSOLIDAÇÃO!F:F,"NÃO") -> 0
C14: Espaços, tempos, qnt. | D14: 5 | E14: =COUNTIFS(CONSOLIDAÇÃO!C:C,"Espaços, tempos, qnt. - BP",CONSOLIDAÇÃO!E:E,"SIM") -> 0 | F14: =COUNTIFS(CONSOLIDAÇÃO!C:C,"Espaços, tempos, qnt. - BP",CONSOLIDAÇÃO!E:E,"NÃO") -> 0 | G14: =COUNTIFS(CONSOLIDAÇÃO!C:C,"Espaços, tempos, qnt. - BP",CONSOLIDAÇÃO!F:F,"SIM") -> 3 | H14: =COUNTIFS(CONSOLIDAÇÃO!C:C,"Espaços, tempos, qnt. - BP",CONSOLIDAÇÃO!F:F,"NÃO") -> 0
C15: TOTAL DA ÁREA | D15: =SUM(D10:D14) -> 25 | E15: =SUM(E10:E14) -> 0 | F15: 1 | G15: =SUM(G10:G14) -> 5 | H15: 0
D16: =E15/D15 -> 0 | F16: =F15/D15 -> 0.04 | G16: =G15/D15 -> 0.2 | H16: =H15/D15 -> 0
B17: Educação Infantil (Pequenas) | C17: O eu, o outro, o nós | D17: 5 | E17: =COUNTIFS(CONSOLIDAÇÃO!C:C,"O eu, o outro, o nós - Pequenas",CONSOLIDAÇÃO!E:E,"SIM") -> 0 | F17: =COUNTIFS(CONSOLIDAÇÃO!C:C,"O eu, o outro, o nós - Pequenas",CONSOLIDAÇÃO!E:E,"NÃO") -> 0 | G17: =COUNTIFS(CONSOLIDAÇÃO!C:C,"O eu, o outro, o nós - Pequenas",CONSOLIDAÇÃO!F:F,"SIM") -> 0 | H17: =COUNTIFS(CONSOLIDAÇÃO!C:C,"O eu, o outro, o nós - Pequenas",CONSOLIDAÇÃO!F:F,"NÃO") -> 0
C18: Corpo, gestos e mov. | D18: 5 | E18: =COUNTIFS(CONSOLIDAÇÃO!C:C,"Corpo, gestos e mov. - Pequenas",CONSOLIDAÇÃO!E:E,"SIM") -> 0 | F18: =COUNTIFS(CONSOLIDAÇÃO!C:C,"Corpo, gestos e mov. - Pequenas",CONSOLIDAÇÃO!E:E,"NÃO") -> 0 | G18: =COUNTIFS(CONSOLIDAÇÃO!C:C,"Corpo, gestos e mov. - Pequenas",CONSOLIDAÇÃO!F:F,"SIM") -> 1 | H18: =COUNTIFS(CONSOLIDAÇÃO!C:C,"Corpo, gestos e mov. - Pequenas",CONSOLIDAÇÃO!F:F,"NÃO") -> 0
C19: Escuta, fala, pens. | D19: 5 | E19: =COUNTIFS(CONSOLIDAÇÃO!C:C,"Escuta, fala, pens. - Pequenas",CONSOLIDAÇÃO!E:E,"SIM") -> 0 | F19: =COUNTIFS(CONSOLIDAÇÃO!C:C,"Escuta, fala, pens. - Pequenas",CONSOLIDAÇÃO!E:E,"NÃO") -> 0 | G19: =COUNTIFS(CONSOLIDAÇÃO!C:C,"Escuta, fala, pens. - Pequenas",CONSOLIDAÇÃO!F:F,"SIM") -> 0 | H19: =COUNTIFS(CONSOLIDAÇÃO!C:C,"Escuta, fala, pens. - Pequenas",CONSOLIDAÇÃO!F:F,"NÃO") -> 0
C20: Traços, sons, formas | D20: 5 | E20: =COUNTIFS(CONSOLIDAÇÃO!C:C,"Traços, sons, formas - Pequenas",CONSOLIDAÇÃO!E:E,"SIM") -> 0 | F20: =COUNTIFS(CONSOLIDAÇÃO!C:C,"Traços, sons, formas - Pequenas",CONSOLIDAÇÃO!E:E,"NÃO") -> 1 | G20: =COUNTIFS(CONSOLIDAÇÃO!C:C,"Traços, sons, formas - Pequenas",CONSOLIDAÇÃO!F:F,"SIM") -> 1 | H20: =COUNTIFS(CONSOLIDAÇÃO!C:C,"Traços, sons, formas - Pequenas",CONSOLIDAÇÃO!F:F,"NÃO") -> 0
C21: Espaços, tempos, qnt. | D21: 5 | E21: =COUNTIFS(CONSOLIDAÇÃO!C:C,"Espaços, tempos, qnt. - Pequena",CONSOLIDAÇÃO!E:E,"SIM") -> 0 | F21: =COUNTIFS(CONSOLIDAÇÃO!C:C,"Espaços, tempos, qnt. - Pequena",CONSOLIDAÇÃO!E:E,"NÃO") -> 0 | G21: =COUNTIFS(CONSOLIDAÇÃO!C:C,"Espaços, tempos, qnt. - Pequena",CONSOLIDAÇÃO!F:F,"SIM") -> 1 | H21: =COUNTIFS(CONSOLIDAÇÃO!C:C,"Espaços, tempos, qnt. - Pequena",CONSOLIDAÇÃO!F:F,"NÃO") -> 0
C22: TOTAL DA ÁREA | D22: =SUM(D17:D21) -> 25 | E22: =SUM(E17:E21) -> 0 | F22: 1 | G22: =SUM(G17:G21) -> 3 | H22: 0
D23: =E22/D22 -> 0 | F23: =F22/D22 -> 0.04 | G23: =G22/D22 -> 0.12 | H23: =H22/D22 -> 0
B24: Ensino Fund. I (1º, 2º e 3º anos) | C24: Língua Portuguesa | D24: 147 | E24: =COUNTIFS(CONSOLIDAÇÃO!C:C,"LINGUAGENS. LÍNGUA PORT I",CONSOLIDAÇÃO!E:E,"SIM") -> 0 | F24: =COUNTIFS(CONSOLIDAÇÃO!C:C,"LINGUAGENS. LÍNGUA PORT I",CONSOLIDAÇÃO!E:E,"NÃO") -> 3 | G24: =COUNTIFS(CONSOLIDAÇÃO!C:C,"LINGUAGENS. LÍNGUA PORT I",CONSOLIDAÇÃO!F:F,"SIM") -> 3 | H24: =COUNTIFS(CONSOLIDAÇÃO!C:C,"LINGUAGENS. LÍNGUA PORT I",CONSOLIDAÇÃO!F:F,"NÃO") -> 0
C25: Arte | D25: 36 | E25: =COUNTIFS(CONSOLIDAÇÃO!C:C,"LINGUAGENS. ARTE I",CONSOLIDAÇÃO!E:E,"SIM") -> 0 | F25: =COUNTIFS(CONSOLIDAÇÃO!C:C,"LINGUAGENS. ARTE I",CONSOLIDAÇÃO!E:E,"NÃO") -> 0 | G25: =COUNTIFS(CONSOLIDAÇÃO!C:C,"LINGUAGENS. ARTE I",CONSOLIDAÇÃO!F:F,"SIM") -> 0 | H25: =COUNTIFS(CONSOLIDAÇÃO!C:C,"LINGUAGENS. ARTE I",CONSOLIDAÇÃO!F:F,"NÃO") -> 0
C26: Educação Física | D26: 27 | E26: =COUNTIFS(CONSOLIDAÇÃO!C:C,"LINGUAGENS. ED. FÍSICA I",CONSOLIDAÇÃO!E:E,"SIM") -> 0 | F26: =COUNTIFS(CONSOLIDAÇÃO!C:C,"LINGUAGENS. ED. FÍSICA I",CONSOLIDAÇÃO!E:E,"NÃO") -> 0 | G26: =COUNTIFS(CONSOLIDAÇÃO!C:C,"LINGUAGENS. ED. FÍSICA I",CONSOLIDAÇÃO!F:F,"SIM") -> 0 | H26: =COUNTIFS(CONSOLIDAÇÃO!C:C,"LINGUAGENS. ED. FÍSICA I",CONSOLIDAÇÃO!F:F,"NÃO") -> 0
C27: Matemática | D27: 51 | E27: =COUNTIFS(CONSOLIDAÇÃO!C:C,"MATEMÁTICA I",CONSOLIDAÇÃO!E:E,"SIM") -> 0 | F27: =COUNTIFS(CONSOLIDAÇÃO!C:C,"MATEMÁTICA I",CONSOLIDAÇÃO!E:E,"NÃO") -> 0 | G27: =COUNTIFS(CONSOLIDAÇÃO!C:C,"MATEMÁTICA I",CONSOLIDAÇÃO!F:F,"SIM") -> 0 | H27: =COUNTIFS(CONSOLIDAÇÃO!C:C,"MATEMÁTICA I",CONSOLIDAÇÃO!F:F,"NÃO") -> 0
C28: Ciências | D28: 35 | E28: =COUNTIFS(CONSOLIDAÇÃO!C:C,"CIÊNCIAS I",CONSOLIDAÇÃO!E:E,"SIM") -> 0 | F28: =COUNTIFS(CONSOLIDAÇÃO!C:C,"CIÊNCIAS I",CONSOLIDAÇÃO!E:E,"NÃO") -> 0 | G28: =COUNTIFS(CONSOLIDAÇÃO!C:C,"CIÊNCIAS I",CONSOLIDAÇÃO!F:F,"SIM") -> 0 | H28: =COUNTIFS(CONSOLIDAÇÃO!C:C,"CIÊNCIAS I",CONSOLIDAÇÃO!F:F,"NÃO") -> 0
C29: História | D29: 59 | E29: =COUNTIFS(CONSOLIDAÇÃO!C:C,"CIÊN. HUMANAS HISTÓRIA I",CONSOLIDAÇÃO!E:E,"SIM") -> 0 | F29: =COUNTIFS(CONSOLIDAÇÃO!C:C,"CIÊN. HUMANAS HISTÓRIA I",CONSOLIDAÇÃO!E:E,"NÃO") -> 0 | G29: =COUNTIFS(CONSOLIDAÇÃO!C:C,"CIÊN. HUMANAS HISTÓRIA I",CONSOLIDAÇÃO!F:F,"SIM") -> 0 | H29: =COUNTIFS(CONSOLIDAÇÃO!C:C,"CIÊN. HUMANAS HISTÓRIA I",CONSOLIDAÇÃO!F:F,"NÃO") -> 0
C30: Geografia | D30: 18 | E30: =COUNTIFS(CONSOLIDAÇÃO!C:C,"CIÊN. HUMANAS GEOGRAFIA I",CONSOLIDAÇÃO!E:E,"SIM") -> 0 | F30: =COUNTIFS(CONSOLIDAÇÃO!C:C,"CIÊN. HUMANAS GEOGRAFIA I",CONSOLIDAÇÃO!E:E,"NÃO") -> 0 | G30: =COUNTIFS(CONSOLIDAÇÃO!C:C,"CIÊN. HUMANAS GEOGRAFIA I",CONSOLIDAÇÃO!F:F,"SIM") -> 0 | H30: =COUNTIFS(CONSOLIDAÇÃO!C:C,"CIÊN. HUMANAS GEOGRAFIA I",CONSOLIDAÇÃO!F:F,"NÃO") -> 0
C31: Ensino Religioso | D31: 15 | E31: =COUNTIFS(CONSOLIDAÇÃO!C:C,"ENSINO RELIGIOSO I",CONSOLIDAÇÃO!E:E,"SIM") -> 0 | F31: =COUNTIFS(CONSOLIDAÇÃO!C:C,"ENSINO RELIGIOSO I",CONSOLIDAÇÃO!E:E,"NÃO") -> 0 | G31: =COUNTIFS(CONSOLIDAÇÃO!C:C,"ENSINO RELIGIOSO I",CONSOLIDAÇÃO!F:F,"SIM") -> 0 | H31: =COUNTIFS(CONSOLIDAÇÃO!C:C,"ENSINO RELIGIOSO I",CONSOLIDAÇÃO!F:F,"NÃO") -> 0
C32: TOTAL DA ÁREA | D32: =SUM(D24:D31) -> 388 | E32: =SUM(E24:E31) -> 0 | F32: 3 | G32: =SUM(G24:G31) -> 3 | H32: 0
D33: =E32/D32 -> 0 | F33: =F32/D32 -> 0.007731958763 | G33: =G32/D32 -> 0.007731958763 | H33: =H32/D32 -> 0
B34: Ensino Fund. I (4º e 5º anos) | C34: Língua Portuguesa | D34: 82 | E34: =COUNTIFS(CONSOLIDAÇÃO!C:C,"LINGUAGENS. LÍNGUA PORT",CONSOLIDAÇÃO!E:E,"SIM") -> 0 | F34: =COUNTIFS(CONSOLIDAÇÃO!C:C,"LINGUAGENS. LÍNGUA PORT",CONSOLIDAÇÃO!E:E,"NÃO") -> 0 | G34: =COUNTIFS(CONSOLIDAÇÃO!C:C,"LINGUAGENS. LÍNGUA PORT",CONSOLIDAÇÃO!F:F,"SIM") -> 0 | H34: =COUNTIFS(CONSOLIDAÇÃO!C:C,"LINGUAGENS. LÍNGUA PORT",CONSOLIDAÇÃO!F:F,"NÃO") -> 0
C35: Arte | D35: 36 | E35: =COUNTIFS(CONSOLIDAÇÃO!C:C,"LINGUAGENS. ARTE",CONSOLIDAÇÃO!E:E,"SIM") -> 0 | F35: =COUNTIFS(CONSOLIDAÇÃO!C:C,"LINGUAGENS. ARTE",CONSOLIDAÇÃO!E:E,"NÃO") -> 0 | G35: =COUNTIFS(CONSOLIDAÇÃO!C:C,"LINGUAGENS. ARTE",CONSOLIDAÇÃO!F:F,"SIM") -> 0 | H35: =COUNTIFS(CONSOLIDAÇÃO!C:C,"LINGUAGENS. ARTE",CONSOLIDAÇÃO!F:F,"NÃO") -> 0
C36: Educação Física | D36: 61 | E36: =COUNTIFS(CONSOLIDAÇÃO!C:C,"LINGUAGENS. ED. FÍSICA",CONSOLIDAÇÃO!E:E,"SIM") -> 0 | F36: =COUNTIFS(CONSOLIDAÇÃO!C:C,"LINGUAGENS. ED. FÍSICA",CONSOLIDAÇÃO!E:E,"NÃO") -> 0 | G36: =COUNTIFS(CONSOLIDAÇÃO!C:C,"LINGUAGENS. ED. FÍSICA",CONSOLIDAÇÃO!F:F,"SIM") -> 0 | H36: =COUNTIFS(CONSOLIDAÇÃO!C:C,"LINGUAGENS. ED. FÍSICA",CONSOLIDAÇÃO!F:F,"NÃO") -> 0
C37: Matemática | D37: 44 | E37: =COUNTIFS(CONSOLIDAÇÃO!C:C,"MATEMÁTICA",CONSOLIDAÇÃO!E:E,"SIM") -> 0 | F37: =COUNTIFS(CONSOLIDAÇÃO!C:C,"MATEMÁTICA",CONSOLIDAÇÃO!E:E,"NÃO") -> 0 | G37: =COUNTIFS(CONSOLIDAÇÃO!C:C,"MATEMÁTICA",CONSOLIDAÇÃO!F:F,"SIM") -> 0 | H37: =COUNTIFS(CONSOLIDAÇÃO!C:C,"MATEMÁTICA",CONSOLIDAÇÃO!F:F,"NÃO") -> 0
C38: Ciências | D38: 23 | E38: =COUNTIFS(CONSOLIDAÇÃO!C:C,"CIÊNCIAS",CONSOLIDAÇÃO!E:E,"SIM") -> 0 | F38: =COUNTIFS(CONSOLIDAÇÃO!C:C,"CIÊNCIAS",CONSOLIDAÇÃO!E:E,"NÃO") -> 0 | G38: =COUNTIFS(CONSOLIDAÇÃO!C:C,"CIÊNCIAS",CONSOLIDAÇÃO!F:F,"SIM") -> 0 | H38: =COUNTIFS(CONSOLIDAÇÃO!C:C,"CIÊNCIAS",CONSOLIDAÇÃO!F:F,"NÃO") -> 0
C39: História | D39: 40 | E39: =COUNTIFS(CONSOLIDAÇÃO!C:C,"CIÊN. HUMANAS HIST.",CONSOLIDAÇÃO!E:E,"SIM") -> 0 | F39: =COUNTIFS(CONSOLIDAÇÃO!C:C,"CIÊN. HUMANAS HIST.",CONSOLIDAÇÃO!E:E,"NÃO") -> 0 | G39: =COUNTIFS(CONSOLIDAÇÃO!C:C,"CIÊN. HUMANAS HIST.",CONSOLIDAÇÃO!F:F,"SIM") -> 0 | H39: =COUNTIFS(CONSOLIDAÇÃO!C:C,"CIÊN. HUMANAS HIST.",CONSOLIDAÇÃO!F:F,"NÃO") -> 0
C40: Geografia | D40: 13 | E40: =COUNTIFS(CONSOLIDAÇÃO!C:C,"CIÊN. HUMANAS GEO.",CONSOLIDAÇÃO!E:E,"SIM") -> 0 | F40: =COUNTIFS(CONSOLIDAÇÃO!C:C,"CIÊN. HUMANAS GEO.",CONSOLIDAÇÃO!E:E,"NÃO") -> 0 | G40: =COUNTIFS(CONSOLIDAÇÃO!C:C,"CIÊN. HUMANAS GEO.",CONSOLIDAÇÃO!F:F,"SIM") -> 0 | H40: =COUNTIFS(CONSOLIDAÇÃO!C:C,"CIÊN. HUMANAS GEO.",CONSOLIDAÇÃO!F:F,"NÃO") -> 0
C41: Ensino Religioso | D41: 10 | E41: =COUNTIFS(CONSOLIDAÇÃO!C:C,"ENSINO RELIGIOSO.",CONSOLIDAÇÃO!E:E,"SIM") -> 0 | F41: =COUNTIFS(CONSOLIDAÇÃO!C:C,"ENSINO RELIGIOSO.",CONSOLIDAÇÃO!E:E,"NÃO") -> 0 | G41: =COUNTIFS(CONSOLIDAÇÃO!C:C,"ENSINO RELIGIOSO.",CONSOLIDAÇÃO!F:F,"SIM") -> 0 | H41: =COUNTIFS(CONSOLIDAÇÃO!C:C,"ENSINO RELIGIOSO.",CONSOLIDAÇÃO!F:F,"NÃO") -> 0
C42: TOTAL DA ÁREA | D42: =SUM(D34:D41) -> 309 | E42: =SUM(E34:E41) -> 0 | F42: 0 | G42: =SUM(G34:G41) -> 0 | H42: 0
D43: =E42/D42 -> 0 | F43: =F42/D42 -> 0 | G43: =G42/D42 -> 0 | H43: =H42/D42 -> 0
B44: Ensino Fund. II | C44: Arte | D44: 39 | E44: =COUNTIFS(CONSOLIDAÇÃO!C:C,"Artes",CONSOLIDAÇÃO!E:E,"SIM") -> 36 | F44: =COUNTIFS(CONSOLIDAÇÃO!C:C,"Artes",CONSOLIDAÇÃO!E:E,"NÃO") -> 2 | G44: =COUNTIFS(CONSOLIDAÇÃO!C:C,"Artes",CONSOLIDAÇÃO!F:F,"SIM") -> 37 | H44: =COUNTIFS(CONSOLIDAÇÃO!C:C,"Artes",CONSOLIDAÇÃO!F:F,"NÃO") -> 0
C45: Ciências | D45: 38 | E45: =COUNTIFS(CONSOLIDAÇÃO!C:C,"ciências da Natureza",CONSOLIDAÇÃO!E:E,"SIM") -> 32 | F45: =COUNTIFS(CONSOLIDAÇÃO!C:C,"ciências da Natureza",CONSOLIDAÇÃO!E:E,"NÃO") -> 4 | G45: =COUNTIFS(CONSOLIDAÇÃO!C:C,"ciências da Natureza",CONSOLIDAÇÃO!F:F,"SIM") -> 29 | H45: =COUNTIFS(CONSOLIDAÇÃO!C:C,"ciências da Natureza",CONSOLIDAÇÃO!F:F,"NÃO") -> 6
C46: Educação Física | D46: 90 | E46: =COUNTIFS(CONSOLIDAÇÃO!C:C,"Educação Física",CONSOLIDAÇÃO!E:E,"SIM") -> 88 | F46: =COUNTIFS(CONSOLIDAÇÃO!C:C,"Educação Física",CONSOLIDAÇÃO!E:E,"NÃO") -> 2 | G46: =COUNTIFS(CONSOLIDAÇÃO!C:C,"Educação Física",CONSOLIDAÇÃO!F:F,"SIM") -> 82 | H46: =COUNTIFS(CONSOLIDAÇÃO!C:C,"Educação Física",CONSOLIDAÇÃO!F:F,"NÃO") -> 8
C47: Ensino Religioso | D47: 38 | E47: =COUNTIFS(CONSOLIDAÇÃO!C:C,"Ensino Religioso",CONSOLIDAÇÃO!E:E,"SIM") -> 38 | F47: =COUNTIFS(CONSOLIDAÇÃO!C:C,"Ensino Religioso",CONSOLIDAÇÃO!E:E,"NÃO") -> 0 | G47: =COUNTIFS(CONSOLIDAÇÃO!C:C,"Ensino Religioso",CONSOLIDAÇÃO!F:F,"SIM") -> 37 | H47: =COUNTIFS(CONSOLIDAÇÃO!C:C,"Ensino Religioso",CONSOLIDAÇÃO!F:F,"NÃO") -> 1
C48: Geografia | D48: 36 | E48: =COUNTIFS(CONSOLIDAÇÃO!C:C,"CIÊN. HUMANAS GEOGRAFIA",CONSOLIDAÇÃO!E:E,"SIM") -> 0 | F48: =COUNTIFS(CONSOLIDAÇÃO!C:C,"CIÊN. HUMANAS GEOGRAFIA",CONSOLIDAÇÃO!E:E,"NÃO") -> 0 | G48: =COUNTIFS(CONSOLIDAÇÃO!C:C,"CIÊN. HUMANAS GEOGRAFIA",CONSOLIDAÇÃO!F:F,"SIM") -> 0 | H48: =COUNTIFS(CONSOLIDAÇÃO!C:C,"CIÊN. HUMANAS GEOGRAFIA",CONSOLIDAÇÃO!F:F,"NÃO") -> 0
C49: História | D49: 122 | E49: =COUNTIFS(CONSOLIDAÇÃO!C:C,"CIÊN. HUMANAS HISTÓRIA",CONSOLIDAÇÃO!E:E,"SIM") -> 0 | F49: =COUNTIFS(CONSOLIDAÇÃO!C:C,"CIÊN. HUMANAS HISTÓRIA",CONSOLIDAÇÃO!E:E,"NÃO") -> 0 | G49: =COUNTIFS(CONSOLIDAÇÃO!C:C,"CIÊN. HUMANAS HISTÓRIA",CONSOLIDAÇÃO!F:F,"SIM") -> 0 | H49: =COUNTIFS(CONSOLIDAÇÃO!C:C,"CIÊN. HUMANAS HISTÓRIA",CONSOLIDAÇÃO!F:F,"NÃO") -> 0
C50: Língua Estrangeira | D50: 32 | E50: =COUNTIFS(CONSOLIDAÇÃO!C:C,"Língua Estrangeira",CONSOLIDAÇÃO!E:E,"SIM") -> 32 | F50: =COUNTIFS(CONSOLIDAÇÃO!C:C,"Língua Estrangeira",CONSOLIDAÇÃO!E:E,"NÃO") -> 0 | G50: =COUNTIFS(CONSOLIDAÇÃO!C:C,"Língua Estrangeira",CONSOLIDAÇÃO!F:F,"SIM") -> 32 | H50: =COUNTIFS(CONSOLIDAÇÃO!C:C,"Língua Estrangeira",CONSOLIDAÇÃO!F:F,"NÃO") -> 0
C51: Língua Portuguesa | D51: 164 | E51: =COUNTIFS(CONSOLIDAÇÃO!C:C,"Língua Portuguesa",CONSOLIDAÇÃO!E:E,"SIM") -> 3 | F51: =COUNTIFS(CONSOLIDAÇÃO!C:C,"Língua Portuguesa",CONSOLIDAÇÃO!E:E,"NÃO") -> 1 | G51: =COUNTIFS(CONSOLIDAÇÃO!C:C,"Língua Portuguesa",CONSOLIDAÇÃO!F:F,"SIM") -> 4 | H51: =COUNTIFS(CONSOLIDAÇÃO!C:C,"Língua Portuguesa",CONSOLIDAÇÃO!F:F,"NÃO") -> 0
C52: Matemática | D52: 75 | E52: =COUNTIFS(CONSOLIDAÇÃO!C:C,"MATEMÁTICA.",CONSOLIDAÇÃO!E:E,"SIM") -> 0 | F52: =COUNTIFS(CONSOLIDAÇÃO!C:C,"MATEMÁTICA.",CONSOLIDAÇÃO!E:E,"NÃO") -> 0 | G52: =COUNTIFS(CONSOLIDAÇÃO!C:C,"MATEMÁTICA.",CONSOLIDAÇÃO!F:F,"SIM") -> 0 | H52: =COUNTIFS(CONSOLIDAÇÃO!C:C,"MATEMÁTICA.",CONSOLIDAÇÃO!F:F,"NÃO") -> 0
C53: TOTAL DA ÁREA | D53: =SUM(D44:D52) -> 634 | E53: =SUM(E44:E52) -> 229 | F53: 9 | G53: =SUM(G44:G52) -> 221 | H53: 15
D54: =E53/D53 -> 0.3611987382 | F54: =F53/D53 -> 0.0141955836 | G54: =G53/D53 -> 0.3485804416 | H54: =H53/D53 -> 0.02365930599
B55: Ensino Médio | C55: Arte | D55: 41 | E55: =COUNTIFS(CONSOLIDAÇÃO!C:C,"EM - ARTES",CONSOLIDAÇÃO!E:E,"SIM") -> 0 | F55: =COUNTIFS(CONSOLIDAÇÃO!C:C,"EM - ARTES",CONSOLIDAÇÃO!E:E,"NÃO") -> 0 | G55: =COUNTIFS(CONSOLIDAÇÃO!C:C,"EM - ARTES",CONSOLIDAÇÃO!F:F,"SIM") -> 0 | H55: =COUNTIFS(CONSOLIDAÇÃO!C:C,"EM - ARTES",CONSOLIDAÇÃO!F:F,"NÃO") -> 0
C56: Biologia | D56: 37 | E56: =COUNTIFS(CONSOLIDAÇÃO!C:C,"EM - BIOLOGIA",CONSOLIDAÇÃO!E:E,"SIM") -> 32 | F56: =COUNTIFS(CONSOLIDAÇÃO!C:C,"EM - BIOLOGIA",CONSOLIDAÇÃO!E:E,"NÃO") -> 5 | G56: =COUNTIFS(CONSOLIDAÇÃO!C:C,"EM - BIOLOGIA",CONSOLIDAÇÃO!F:F,"SIM") -> 31 | H56: =COUNTIFS(CONSOLIDAÇÃO!C:C,"EM - BIOLOGIA",CONSOLIDAÇÃO!F:F,"NÃO") -> 6
C57: Educação Física | D57: 92 | E57: =COUNTIFS(CONSOLIDAÇÃO!C:C,"EM - EDUCAÇÃO FÍSICA",CONSOLIDAÇÃO!E:E,"SIM") -> 0 | F57: =COUNTIFS(CONSOLIDAÇÃO!C:C,"EM - EDUCAÇÃO FÍSICA",CONSOLIDAÇÃO!E:E,"NÃO") -> 0 | G57: =COUNTIFS(CONSOLIDAÇÃO!C:C,"EM - EDUCAÇÃO FÍSICA",CONSOLIDAÇÃO!F:F,"SIM") -> 0 | H57: =COUNTIFS(CONSOLIDAÇÃO!C:C,"EM - EDUCAÇÃO FÍSICA",CONSOLIDAÇÃO!F:F,"NÃO") -> 0
C58: Filosofia | D58: 16 | E58: =COUNTIFS(CONSOLIDAÇÃO!C:C,"EM - FILOSOFIA",CONSOLIDAÇÃO!E:E,"SIM") -> 16 | F58: =COUNTIFS(CONSOLIDAÇÃO!C:C,"EM - FILOSOFIA",CONSOLIDAÇÃO!E:E,"NÃO") -> 0 | G58: =COUNTIFS(CONSOLIDAÇÃO!C:C,"EM - FILOSOFIA",CONSOLIDAÇÃO!F:F,"SIM") -> 16 | H58: =COUNTIFS(CONSOLIDAÇÃO!C:C,"EM - FILOSOFIA",CONSOLIDAÇÃO!F:F,"NÃO") -> 0
C59: Física | D59: 53 | E59: =COUNTIFS(CONSOLIDAÇÃO!C:C,"EM - FÍSICA",CONSOLIDAÇÃO!E:E,"SIM") -> 53 | F59: =COUNTIFS(CONSOLIDAÇÃO!C:C,"EM - FÍSICA",CONSOLIDAÇÃO!E:E,"NÃO") -> 0 | G59: =COUNTIFS(CONSOLIDAÇÃO!C:C,"EM - FÍSICA",CONSOLIDAÇÃO!F:F,"SIM") -> 51 | H59: =COUNTIFS(CONSOLIDAÇÃO!C:C,"EM - FÍSICA",CONSOLIDAÇÃO!F:F,"NÃO") -> 2
C60: Geografia | D60: 25 | E60: =COUNTIFS(CONSOLIDAÇÃO!C:C,"EM - GEOGRAFIA",CONSOLIDAÇÃO!E:E,"SIM") -> 0 | F60: =COUNTIFS(CONSOLIDAÇÃO!C:C,"EM - GEOGRAFIA",CONSOLIDAÇÃO!E:E,"NÃO") -> 0 | G60: =COUNTIFS(CONSOLIDAÇÃO!C:C,"EM - GEOGRAFIA",CONSOLIDAÇÃO!F:F,"SIM") -> 0 | H60: =COUNTIFS(CONSOLIDAÇÃO!C:C,"EM - GEOGRAFIA",CONSOLIDAÇÃO!F:F,"NÃO") -> 0
C61: História | D61: 48 | E61: =COUNTIFS(CONSOLIDAÇÃO!C:C,"EM - HISTÓRIA",CONSOLIDAÇÃO!E:E,"SIM") -> 0 | F61: =COUNTIFS(CONSOLIDAÇÃO!C:C,"EM - HISTÓRIA",CONSOLIDAÇÃO!E:E,"NÃO") -> 0 | G61: =COUNTIFS(CONSOLIDAÇÃO!C:C,"EM - HISTÓRIA",CONSOLIDAÇÃO!F:F,"SIM") -> 0 | H61: =COUNTIFS(CONSOLIDAÇÃO!C:C,"EM - HISTÓRIA",CONSOLIDAÇÃO!F:F,"NÃO") -> 0
C62: Língua Estrangeira | D62: 16 | E62: =COUNTIFS(CONSOLIDAÇÃO!C:C,"EM - LÍNGUA ESTRANGEIRA",CONSOLIDAÇÃO!E:E,"SIM") -> 15 | F62: =COUNTIFS(CONSOLIDAÇÃO!C:C,"EM - LÍNGUA ESTRANGEIRA",CONSOLIDAÇÃO!E:E,"NÃO") -> 1 | G62: =COUNTIFS(CONSOLIDAÇÃO!C:C,"EM - LÍNGUA ESTRANGEIRA",CONSOLIDAÇÃO!F:F,"SIM") -> 16 | H62: =COUNTIFS(CONSOLIDAÇÃO!C:C,"EM - LÍNGUA ESTRANGEIRA",CONSOLIDAÇÃO!F:F,"NÃO") -> 0
C63: Língua Portuguesa | D63: 76 | E63: =COUNTIFS(CONSOLIDAÇÃO!C:C,"EM - LÍNGUA PORTUGUESA",CONSOLIDAÇÃO!E:E,"SIM") -> 4 | F63: =COUNTIFS(CONSOLIDAÇÃO!C:C,"EM - LÍNGUA PORTUGUESA",CONSOLIDAÇÃO!E:E,"NÃO") -> 0 | G63: =COUNTIFS(CONSOLIDAÇÃO!C:C,"EM - LÍNGUA PORTUGUESA",CONSOLIDAÇÃO!F:F,"SIM") -> 2 | H63: =COUNTIFS(CONSOLIDAÇÃO!C:C,"EM - LÍNGUA PORTUGUESA",CONSOLIDAÇÃO!F:F,"NÃO") -> 2
C64: Matemática | D64: 56 | E64: =COUNTIFS(CONSOLIDAÇÃO!C:C,"EM - MATEMÁTICA",CONSOLIDAÇÃO!E:E,"SIM") -> 0 | F64: =COUNTIFS(CONSOLIDAÇÃO!C:C,"EM - MATEMÁTICA",CONSOLIDAÇÃO!E:E,"NÃO") -> 0 | G64: =COUNTIFS(CONSOLIDAÇÃO!C:C,"EM - MATEMÁTICA",CONSOLIDAÇÃO!F:F,"SIM") -> 0 | H64: =COUNTIFS(CONSOLIDAÇÃO!C:C,"EM - MATEMÁTICA",CONSOLIDAÇÃO!F:F,"NÃO") -> 0
C65: Química | D65: 40 | E65: =COUNTIFS(CONSOLIDAÇÃO!C:C,"EM - QUÍMICA",CONSOLIDAÇÃO!E:E,"SIM") -> 2 | F65: =COUNTIFS(CONSOLIDAÇÃO!C:C,"EM - QUÍMICA",CONSOLIDAÇÃO!E:E,"NÃO") -> 0 | G65: =COUNTIFS(CONSOLIDAÇÃO!C:C,"EM - QUÍMICA",CONSOLIDAÇÃO!F:F,"SIM") -> 2 | H65: =COUNTIFS(CONSOLIDAÇÃO!C:C,"EM - QUÍMICA",CONSOLIDAÇÃO!F:F,"NÃO") -> 0
C66: Sociologia | D66: 36 | E66: =COUNTIFS(CONSOLIDAÇÃO!C:C,"EM - SOCIOLOGIA",CONSOLIDAÇÃO!E:E,"SIM") -> 0 | F66: =COUNTIFS(CONSOLIDAÇÃO!C:C,"EM - SOCIOLOGIA",CONSOLIDAÇÃO!E:E,"NÃO") -> 12 | G66: =COUNTIFS(CONSOLIDAÇÃO!C:C,"EM - SOCIOLOGIA",CONSOLIDAÇÃO!F:F,"SIM") -> 3 | H66: =COUNTIFS(CONSOLIDAÇÃO!C:C,"EM - SOCIOLOGIA",CONSOLIDAÇÃO!F:F,"NÃO") -> 0
C67: TOTAL DA ÁREA | D67: =SUM(D55:D66) -> 536 | E67: =SUM(E55:E66) -> 122 | F67: 18 | G67: =SUM(G55:G66) -> 121 | H67: 10
D68: =E67/D67 -> 0.2276119403 | F68: =F67/D67 -> 0.03358208955 | G68: =G67/D67 -> 0.2257462687 | H68: =H67/D67 -> 0.01865671642
B69: TOTAL DE OBJETIVOS DE APRENDIZAGEM | C69: =SUM(D67,D53,D42,D32,D22,D15,D8) -> 1940 | D69: Porcentagem de objetivos indicados por problemas de CLAREZA | E69: =SUM(E67,E53,E42,E32,E22,E15,E8) -> 351 | F69: =SUM(F67,F53,F42,F32,F22,F15,F8) -> 33 | G69: =SUM(G67,G53,G42,G32,G22,G15,G8) -> 353 | H69: =SUM(H67,H53,H42,H32,H22,H15,H8) -> 25
D70: Porcentagem de objetivos indicados por problemas de PERTINÊNCIA | E70: =E69/C69 -> 0.1809278351 | F70: =F69/C69 -> 0.01701030928 | G70: =G69/C69 -> 0.1819587629 | H70: =H69/C69 -> 0.01288659794

Sheet Planilha1
